﻿ACC.Account Name,FIN.Net Transaction Amount,FIN.Posting Date,MCH.Merchant Name - Original,FIN.Expense Description,MCH.Merchant Category Code (MCC),MCH.MCC Description,ACC.Reports To Intermediate Level 1 Name Line 1
REDACTED,94.1,01/10/2015,GREATERANGLIA.CO.UK,XXXXX and XXXXX travel to Pensions Mtgs,4112,PASSENGER RAILWAYS,RESOURCE MANAGEMENT
REDACTED,104.63,01/10/2015,B & Q,Materials for storage boxes anson road,5211,"BUILDING MATERIALS, LUMBER STORES",FIRE
REDACTED,77.32,01/10/2015,TRAINLINE,Train ticket for XXXXX to Bournemouth,4112,PASSENGER RAILWAYS,RESOURCE MANAGEMENT
REDACTED,7.5,01/10/2015,B & Q,Brush for Outside rack roofpaint,5211,"BUILDING MATERIALS, LUMBER STORES",FIRE
REDACTED,149.73,01/10/2015,ARGOS RETAIL GROUP,2 x chest of drawers for f/c XXXXX,5310,DISCOUNT STORES,CHILDREN & YOUNG PEOPLE
REDACTED,189,01/10/2015,99DESIGNS PTY. LTD,Graphic design for organisation logo,7399,BUSINESS SERVICES-NOT ELSEWHERE CLASSIFIED,CHILDREN & YOUNG PEOPLE
REDACTED,20,01/10/2015,LUL TICKET MACHINE,"XXXXX, Oystercard top-up",4112,PASSENGER RAILWAYS,ENVIRONMENT & TRANSPORT
REDACTED,16.67,01/10/2015,B & Q,timber for roof above external cages,5211,"BUILDING MATERIALS, LUMBER STORES",FIRE
REDACTED,6.48,01/10/2015,EASILY LTD,Domain Name subscription for twelve months,7392,"CONSULTING, MANAGEMENT, AND PUBLIC RELATIONS SVCS",RESOURCE MANAGEMENT
REDACTED,17.59,01/10/2015,ESSO GAINSBOROUGH SSTN,Chainssaw fuel,5541,SERVICE STATIONS WITH OR WITHOUT ANCILLARY SERVICE,ENVIRONMENT & TRANSPORT
REDACTED,62.47,01/10/2015,B & Q,materials for external cages at stores,5211,"BUILDING MATERIALS, LUMBER STORES",FIRE
REDACTED,8.12,01/10/2015,Amazon UK Marketplace,BIC BALLPOINT PENS,5942,BOOK STORES,FIRE
REDACTED,24.38,01/10/2015,ASDA SUPERSTORE,lunch for visitors from Norfolk XXXXX,5411,"GROCERY STORES, SUPERMARKETS",PUBLIC PROTECTION
REDACTED,7.37,02/10/2015,B & Q,Rapid cement for Sudbury door,5211,"BUILDING MATERIALS, LUMBER STORES",FIRE
REDACTED,14.99,02/10/2015,ARGOS RETAIL GROUP,Furniture and Equipment grant - XXXXX,5310,DISCOUNT STORES,ADULT & COMMUNITY SERVICES
REDACTED,44.25,02/10/2015,PENTAHOTEL IPSWICH,Hotel for member of ACC interview panel,3653,PENTA HOTELS,PUBLIC HEALTH
REDACTED,15.15,02/10/2015,5541 WATTISHAM,Meals for 3 course delegates,5811,CATERERS,FIRE
REDACTED,9.25,02/10/2015,GRO HM PASSPORT OFFICE,Birth Cert. 086GS106/7,9399,GOVERNMENT SERVICES-NOT ELSEWHERE CLASSIFIED,CHILDREN & YOUNG PEOPLE
REDACTED,128.94,02/10/2015,ARGOS RETAIL GROUP,Furniture and Equipment grant - XXXXX,5310,DISCOUNT STORES,ADULT & COMMUNITY SERVICES
REDACTED,46.8,02/10/2015,GRO HM PASSPORT OFFICE,Birth Certificates,9399,GOVERNMENT SERVICES-NOT ELSEWHERE CLASSIFIED,CHILDREN & YOUNG PEOPLE
REDACTED,54.45,02/10/2015,TRAVELODGE WEBSITE,Overnight accom XXXXX 13/10,3615,TRAVELODGE,CHILDREN & YOUNG PEOPLE
REDACTED,1.5,02/10/2015,UPT- GRAYS SHOPPING CE,Parking at Thurrock for meeting,8999,PROFESSIONAL SERVICES-NOT ELSEWHERE CLASSIFIED,PUBLIC PROTECTION
REDACTED,307.51,05/10/2015,Amazon web services,onesuffolk hosting,7399,BUSINESS SERVICES-NOT ELSEWHERE CLASSIFIED,RESOURCE MANAGEMENT
REDACTED,8.28,05/10/2015,Amazon UK Marketplace,Looked After Children Audio Video Cable,5942,BOOK STORES,ADULT & COMMUNITY SERVICES
REDACTED,19.5,05/10/2015,FILOFAX LETTS BLUELINE,Replacement diary pages 2016,5999,MISCELLANEOUS AND SPECIALTY RETAIL STORES,PUBLIC PROTECTION
REDACTED,20,05/10/2015,OYSTER AUTOTOPUP,Auto top up of Suffolk Legal Oystercard,4112,PASSENGER RAILWAYS,RESOURCE MANAGEMENT
REDACTED,19.64,05/10/2015,Amazon EU,Feelings flash cards for social care team,5969,DIRECT MARKETING-OTHER DIRECT MARKETERS/NOT ELSEW.,CHILDREN & YOUNG PEOPLE
REDACTED,49.95,05/10/2015,THE BOOK PEOPLE,Materials for groups - Xmas Party S-O2015 R1,5942,BOOK STORES,CHILDREN & YOUNG PEOPLE
REDACTED,1106.87,05/10/2015,DRURY BIRMINGHAM SW,accommodation for social worker on child care case,3693,DRURY INN,CHILDREN & YOUNG PEOPLE
REDACTED,1106.87,05/10/2015,DRURY BIRMINGHAM SW,accommodation for manager on child care case,3693,DRURY INN,CHILDREN & YOUNG PEOPLE
REDACTED,256.66,05/10/2015,"Amazon Svcs Europe,SAR",Blackstone's Civil Practice 2015,5942,BOOK STORES,RESOURCE MANAGEMENT
REDACTED,20,05/10/2015,WWW.SALON-SERVICES.COM,Looked After Children - Scissors for SR's Course,7230,BARBER AND BEAUTY SHOPS,ADULT & COMMUNITY SERVICES
REDACTED,117.25,05/10/2015,TICKETMASTER UK,Looked after children - activity concert trip,7922,"THEATRICAL PRODUCERS(EXCL MOTION PIX),TICKET AGNCY",CHILDREN & YOUNG PEOPLE
REDACTED,8.99,05/10/2015,Amazon UK Marketplace,Games for Learning Dis team,5942,BOOK STORES,CHILDREN & YOUNG PEOPLE
REDACTED,19.15,05/10/2015,TomTom,New windscreen mount for TomTom,5531,"AUTO STORE, HOME SUPPLY STORES",FIRE
REDACTED,27.25,05/10/2015,Amazon EU,CLOCK/STATIONERY,5969,DIRECT MARKETING-OTHER DIRECT MARKETERS/NOT ELSEW.,FIRE
REDACTED,9.69,05/10/2015,WWW.BEAL.ORG.UK,Split - Cable ties for Planning site notices (71.04%),5065,ELECTRICAL PARTS AND EQUIPMENT,RESOURCE MANAGEMENT
REDACTED,3.95,05/10/2015,WWW.BEAL.ORG.UK,Split - Carriage (28.96%),5065,ELECTRICAL PARTS AND EQUIPMENT,RESOURCE MANAGEMENT
REDACTED,48,05/10/2015,CARTOONSTOC,Image + license for Healthy Suffolk website,5999,MISCELLANEOUS AND SPECIALTY RETAIL STORES,PUBLIC HEALTH
REDACTED,4.7,05/10/2015,B & Q,Frame fixers for Sudbury,5211,"BUILDING MATERIALS, LUMBER STORES",FIRE
REDACTED,14.48,05/10/2015,Amazon EU,Games for Learning Dis team,5969,DIRECT MARKETING-OTHER DIRECT MARKETERS/NOT ELSEW.,CHILDREN & YOUNG PEOPLE
REDACTED,-23.4,05/10/2015,GRO HM PASSPORT OFFICE,Refund of Birth certificate cost,9399,GOVERNMENT SERVICES-NOT ELSEWHERE CLASSIFIED,CHILDREN & YOUNG PEOPLE
REDACTED,303.32,05/10/2015,CELEXON UK LIMITED,NEW PROJECTOR FOR 036 - FIRE IT REQUIRED LOCAL PUR,5946,CAMERA AND PHOTOGRAPHIC SUPPLY STORES,FIRE
REDACTED,164.4,06/10/2015,FARMCAFE & FOODMARKET,System Integrated meeting with NHS,5814,FAST FOOD RESTAURANTS,ADULT & COMMUNITY SERVICES
REDACTED,349.95,06/10/2015,Amazon UK Marketplace,Tripple Bunk Bed ref 086NR029/2,5942,BOOK STORES,CHILDREN & YOUNG PEOPLE
REDACTED,21,06/10/2015,SUFFOLK COUNTY COUNCIL,Birth Certs local RO 086GS071/3,9399,GOVERNMENT SERVICES-NOT ELSEWHERE CLASSIFIED,CHILDREN & YOUNG PEOPLE
REDACTED,21.29,06/10/2015,WAITROSE 140,food and drink for sessions,5411,"GROCERY STORES, SUPERMARKETS",CHILDREN & YOUNG PEOPLE
REDACTED,79.96,06/10/2015,WHSMITH.CO.UK,Condolence books for operation London Bridge,5965,DIRECT MARKETING-COMBINATION CATALOG/RETAIL MERCH.,RESOURCE MANAGEMENT
REDACTED,39.19,06/10/2015,OFFICE-INC.CO.UK,Note pads (inc Pencils) for STOCK  req by XXXXX,7372,"COMP PROGRAMING,DATA PRCSNG,INTGRTD SYS DSGN SRVS",PUBLIC PROTECTION
REDACTED,123.85,06/10/2015,RIDGEONS,Materials for FIDU (XXXXX),5211,"BUILDING MATERIALS, LUMBER STORES",FIRE
REDACTED,46.57,06/10/2015,ASDA HOME SHOPPING,Food for groups S-O2015 R2,5411,"GROCERY STORES, SUPERMARKETS",CHILDREN & YOUNG PEOPLE
REDACTED,249.15,06/10/2015,TURNERS(IPSWICH),SERVICE EF13 FUA,7538,AUTOMOTIVE SERVICE SHOPS,FIRE
REDACTED,8.32,07/10/2015,Amazon EU,HDMI to VGA cable for team lcd projector,5969,DIRECT MARKETING-OTHER DIRECT MARKETERS/NOT ELSEW.,PUBLIC PROTECTION
REDACTED,8.97,07/10/2015,"Amazon Svcs Europe,SAR",Prayer Mat for XXXXX,5942,BOOK STORES,CHILDREN & YOUNG PEOPLE
REDACTED,35.1,07/10/2015,WWW.YOURSCHOOLWEAR.CO.,086MM055/1 Stowmarket Sports uniform,5641,CHILDREN'S AND INFANT'S WEAR STORES,CHILDREN & YOUNG PEOPLE
REDACTED,5,07/10/2015,TESCO STORES-2941,provisions for groups,5411,"GROCERY STORES, SUPERMARKETS",CHILDREN & YOUNG PEOPLE
REDACTED,342.64,07/10/2015,Amazon EU,New wireless projector and Wi-Fi key,5969,DIRECT MARKETING-OTHER DIRECT MARKETERS/NOT ELSEW.,PUBLIC PROTECTION
REDACTED,571.26,07/10/2015,TURNERS(IPSWICH),SERVICE AND REPAIR EY63 EUW,7538,AUTOMOTIVE SERVICE SHOPS,FIRE
REDACTED,18.95,07/10/2015,ARGOS RETAIL GROUP,Stair gate for f/c XXXXX,5310,DISCOUNT STORES,CHILDREN & YOUNG PEOPLE
REDACTED,15.82,07/10/2015,STAPLES UK,Desktop calculator for BOPS Administrator,5943,"OFFICE, SCHOOL SUPPLY, AND STATIONERY STORES",CHILDREN & YOUNG PEOPLE
REDACTED,9.42,08/10/2015,Amazon EU,CD Wallet for XXXX,5969,DIRECT MARKETING-OTHER DIRECT MARKETERS/NOT ELSEW.,CHILDREN & YOUNG PEOPLE
REDACTED,69.7,08/10/2015,ELECTRIC CENTRE,38 mm x 38 mm trunking for IT rewire,5065,ELECTRICAL PARTS AND EQUIPMENT,FIRE
REDACTED,10.08,08/10/2015,POST OFFICE COUNTER,SG papers to councillors,9402,POSTAL SERVICES-GOVERNMENT ONLY,ENVIRONMENT & TRANSPORT
REDACTED,29.75,08/10/2015,GREATERANGLIA.CO.UK,XXXXX travel to CLG for mtg,4112,PASSENGER RAILWAYS,RESOURCE MANAGEMENT
REDACTED,138.53,08/10/2015,Amazon UK Marketplace,Nokia Phone Cases for Councillors,5942,BOOK STORES,RESOURCE MANAGEMENT
REDACTED,8.38,08/10/2015,MOTO BURGER KING - WES,"COMFORT BREAK, VEHICLE INSPECTION IN BRISTOL",5812,"EATING PLACES, RESTAURANTS",FIRE
REDACTED,2.5,08/10/2015,WILKO RETAIL LIMIT,Equipment for groups S-O2015 R4,5722,HOUSEHOLD APPLIANCE STORES,CHILDREN & YOUNG PEOPLE
REDACTED,37,08/10/2015,DSA THEORY TEST,Theory test booked by XXXXX,9399,GOVERNMENT SERVICES-NOT ELSEWHERE CLASSIFIED,FIRE
REDACTED,77.99,08/10/2015,JESSOPS,Camera for internal communications,5946,CAMERA AND PHOTOGRAPHIC SUPPLY STORES,PUBLIC HEALTH
REDACTED,110.88,09/10/2015,ASDA HOME SHOPPING,Looked after Children - Provisions,5411,"GROCERY STORES, SUPERMARKETS",CHILDREN & YOUNG PEOPLE
REDACTED,306,09/10/2015,ARGOS RETAIL GROUP,Furniture and Equipment grant - XXXXX.,5310,DISCOUNT STORES,ADULT & COMMUNITY SERVICES
REDACTED,67,09/10/2015,GREATERANGLIA.CO.UK,XXXXX meeting in London,4112,PASSENGER RAILWAYS,RESOURCE MANAGEMENT
REDACTED,42.43,09/10/2015,ARGOS RETAIL GROUP,Furniture and Equipment grant - XXXXX.,5310,DISCOUNT STORES,ADULT & COMMUNITY SERVICES
REDACTED,210,09/10/2015,LEISTON LEISURE CENTRE,Activities for XXXXX  (id: 301941),7997,"CLUBS-CNTRY,MBRSHIP(ATHLET,REC,SPRTS,PRIVATE GOLF",CHILDREN & YOUNG PEOPLE
REDACTED,75.94,09/10/2015,ARGOS RETAIL GROUP,Furniture and Equipment grant -XXXXX.,5310,DISCOUNT STORES,ADULT & COMMUNITY SERVICES
REDACTED,10.16,09/10/2015,B & Q,Replacment drill bits,5211,"BUILDING MATERIALS, LUMBER STORES",FIRE
REDACTED,29.79,09/10/2015,AC LEIGH (NORWICH) LTD,Lock for sliding door at Framlingham,1799,"CONTRACTORS,SPECIAL TRADE-NOT ELSEWHERE CLASSIFIED",FIRE
REDACTED,-0.08,09/10/2015,ASDA HOME SHOPPING,Looked after children - Provisions,5411,"GROCERY STORES, SUPERMARKETS",CHILDREN & YOUNG PEOPLE
REDACTED,83.88,09/10/2015,123-REG.CO.UK,Upgrade to Website Hosting Package,4816,COMPUTER NETWORK/INFORMATION SERVICES,ENVIRONMENT & TRANSPORT
REDACTED,71.93,09/10/2015,ARGOS RETAIL GROUP,Furniture and Equipment grant - XXXXX.,5310,DISCOUNT STORES,ADULT & COMMUNITY SERVICES
REDACTED,100.75,09/10/2015,PREMIER INN44511275,Accommodation for XXXXX,3811,PREMIER INN,FIRE
REDACTED,145.5,09/10/2015,TVLICENSING.CO.UK,Looked after Children - TV License,7392,"CONSULTING, MANAGEMENT, AND PUBLIC RELATIONS SVCS",CHILDREN & YOUNG PEOPLE
REDACTED,-13.98,09/10/2015,ARCHTOOLS44447958615,refund for an item not received,,,CHILDREN & YOUNG PEOPLE
REDACTED,20.96,12/10/2015,JOHNSON CLEANERS,"cleaning of ""opening ceremony"" curtains (XXXXX)",7216,DRY CLEANERS,PUBLIC PROTECTION
REDACTED,202.5,12/10/2015,MSFT  <E01001EIYP>,Microsoft Dynamics CRM Online Professional Service,4816,COMPUTER NETWORK/INFORMATION SERVICES,RESOURCE MANAGEMENT
REDACTED,-29.79,12/10/2015,AC LEIGH (NORWICH) LTD,refund on lock Framlingham,1799,"CONTRACTORS,SPECIAL TRADE-NOT ELSEWHERE CLASSIFIED",FIRE
REDACTED,239.88,12/10/2015,WHSMITH.CO.UK,Condolence books,5965,DIRECT MARKETING-COMBINATION CATALOG/RETAIL MERCH.,RESOURCE MANAGEMENT
REDACTED,55,12/10/2015,WATERSTONES.COM,Book for XXXXX Ipswich N&E LAC,5942,BOOK STORES,CHILDREN & YOUNG PEOPLE
REDACTED,25.95,12/10/2015,Amazon UK Marketplace,2x shirts requested by XXXXX,5942,BOOK STORES,CHILDREN & YOUNG PEOPLE
REDACTED,6.98,12/10/2015,Amazon UK Marketplace,Water Bottle requested by XXXXX,5942,BOOK STORES,CHILDREN & YOUNG PEOPLE
REDACTED,7.99,12/10/2015,Amazon UK Marketplace,Dyslexia Overlays for member of staff,5942,BOOK STORES,CHILDREN & YOUNG PEOPLE
REDACTED,6.5,12/10/2015,ASDA SUPERSTORE,A 4 Notebooks,5411,"GROCERY STORES, SUPERMARKETS",FIRE
REDACTED,254.48,12/10/2015,TURNER MOTOR GROUP,SERVICE EN13 HYO,7538,AUTOMOTIVE SERVICE SHOPS,FIRE
REDACTED,17.59,12/10/2015,WATERSTONES.COM,Book for XXXXX Ipswich N&E LAC,5942,BOOK STORES,CHILDREN & YOUNG PEOPLE
REDACTED,74.85,12/10/2015,GREATERANGLIA.CO.UK,Split - Train Tickets for XXXXX & XXXXX (66.39%),4112,PASSENGER RAILWAYS,RESOURCE MANAGEMENT
REDACTED,37.9,12/10/2015,GREATERANGLIA.CO.UK,Split - Train Ticket XXXXX SSPLG 14/10/2015 (33.61%),4112,PASSENGER RAILWAYS,RESOURCE MANAGEMENT
REDACTED,22,12/10/2015,STATIONERY OFFICE BOOK,Public Notice London Gazette Stopping Up Europa Wa,5964,DIRECT MARKETING-CATALOG MERCHANTS,RESOURCE MANAGEMENT
REDACTED,12.99,12/10/2015,SPORTSDIRECT.COM,Children's clothing,5941,SPORTING GOODS STORES,CHILDREN & YOUNG PEOPLE
REDACTED,29.75,13/10/2015,GREATERANGLIA.CO.UK,XXXXX mtg with Kier London,4112,PASSENGER RAILWAYS,RESOURCE MANAGEMENT
REDACTED,95,13/10/2015,PARENTPAY.COM,Dinner money credit XXXXX,8220,"COLLEGES, UNIV, PRO SCHOOLS, JUNIOR COLLEGES",CHILDREN & YOUNG PEOPLE
REDACTED,66.43,13/10/2015,NHBS LTD,Bird Boxes_XXXXX,5942,BOOK STORES,ENVIRONMENT & TRANSPORT
REDACTED,6.87,13/10/2015,Amazon UK Marketplace,Man Utd Water Bottle; requested by XXXXX,5942,BOOK STORES,CHILDREN & YOUNG PEOPLE
REDACTED,8.64,13/10/2015,EOE CO-OP,Refreshments for Multi agency meetings,5411,"GROCERY STORES, SUPERMARKETS",FIRE
REDACTED,0.07,13/10/2015,ASDA HOME SHOPPING,Food for Groups S-O2015 R3,5411,"GROCERY STORES, SUPERMARKETS",CHILDREN & YOUNG PEOPLE
REDACTED,116.56,13/10/2015,WWW.STAPLES.CO.UK,10 x A4 Metal File boxes for Foster Carers,5943,"OFFICE, SCHOOL SUPPLY, AND STATIONERY STORES",CHILDREN & YOUNG PEOPLE
REDACTED,38.19,13/10/2015,ASDA HOME SHOPPING,Food for groups S-O2015 R3,5411,"GROCERY STORES, SUPERMARKETS",CHILDREN & YOUNG PEOPLE
REDACTED,18.2,13/10/2015,SL-NCP-ADAPTIS ECOM GA,Parking for meetings Bristol and London,7523,AUTOMOBILE PARKING LOTS AND GARAGES,PUBLIC PROTECTION
REDACTED,150,13/10/2015,SLAM NHSFT,Attendance - Mental wellbeing impact assessment,8050,NURSING AND PERSONAL CARE FACILITIES,PUBLIC HEALTH
REDACTED,5.1,13/10/2015,SL-NCP-ADAPTIS ECOM GA,Stowmarket rail car parking,7523,AUTOMOBILE PARKING LOTS AND GARAGES,PUBLIC PROTECTION
REDACTED,6.99,13/10/2015,Amazon UK Marketplace,Arsenal lunchbox requested by XXXXX,5942,BOOK STORES,CHILDREN & YOUNG PEOPLE
REDACTED,224.09,13/10/2015,I S & G STEEL STOCK HO,tube/fittings for handrails to ramps training XXXXX,5085,INDUSTRIAL SUPPLIES NOT ELSEWHERE CLASSIFIED,FIRE
REDACTED,146.5,13/10/2015,VIRGINTRAINSEC SERVCS,XXXXX 27 Oct and 1-2 December,4112,PASSENGER RAILWAYS,ENVIRONMENT & TRANSPORT
REDACTED,120,13/10/2015,PARENTPAY.COM,Dinner Money credit for XXXXX,8220,"COLLEGES, UNIV, PRO SCHOOLS, JUNIOR COLLEGES",CHILDREN & YOUNG PEOPLE
REDACTED,20,13/10/2015,SUFFOLK COUNTY COUNCIL,Copy of Birth Certificate for Care Leaver,9399,GOVERNMENT SERVICES-NOT ELSEWHERE CLASSIFIED,CHILDREN & YOUNG PEOPLE
REDACTED,54.53,14/10/2015,WICKES BUILDING,Bolts x 7 Packs_XXXXX,5211,"BUILDING MATERIALS, LUMBER STORES",ENVIRONMENT & TRANSPORT
REDACTED,146.71,14/10/2015,ASDA HOME SHOPPING,Looked after children - Provisions,5411,"GROCERY STORES, SUPERMARKETS",CHILDREN & YOUNG PEOPLE
REDACTED,9.97,14/10/2015,DUNELM LTD,kitchen equipment for snack,5714,"DRAPERY, UPOLSTERY, AND WINDOW COVERINGS STORES",CHILDREN & YOUNG PEOPLE
REDACTED,68.66,14/10/2015,BOOHOO.COM,Looked After Children - Clothes for XXXXX,5631,WOMEN'S ACCESSORY AND SPECIALTY STORES,ADULT & COMMUNITY SERVICES
REDACTED,40.5,14/10/2015,GORDON INCE LIMITE,086SB046/1 Stowupland Sports uniform,5651,FAMILY CLOTHING STORES,CHILDREN & YOUNG PEOPLE
REDACTED,46,14/10/2015,VIRGINTRAINSEC SERVCS,XXXXX H'worth-London 2 Dec RWPG,4112,PASSENGER RAILWAYS,ENVIRONMENT & TRANSPORT
REDACTED,27.75,14/10/2015,Amazon UK Marketplace,Flipchart stand and a flipchart cardboard stand,5942,BOOK STORES,RESOURCE MANAGEMENT
REDACTED,-1.98,14/10/2015,ASDA HOME SHOPPING,"Food/drink for groups,refund unacceptable sub",5411,"GROCERY STORES, SUPERMARKETS",CHILDREN & YOUNG PEOPLE
REDACTED,-0.55,14/10/2015,ASDA HOME SHOPPING,Looked after Children - Provisions,5411,"GROCERY STORES, SUPERMARKETS",CHILDREN & YOUNG PEOPLE
REDACTED,41.24,14/10/2015,ASDA HOME SHOPPING,Food and drink for groups,5411,"GROCERY STORES, SUPERMARKETS",CHILDREN & YOUNG PEOPLE
REDACTED,38.41,14/10/2015,NHBS LTD,Bird Best Boxes XXXXX,5942,BOOK STORES,ENVIRONMENT & TRANSPORT
REDACTED,4.8,14/10/2015,LUL TICKET MACHINE,Underground ticket travel between meetings,4112,PASSENGER RAILWAYS,PUBLIC PROTECTION
REDACTED,7.32,14/10/2015,B & Q,Anchor bolts for wattisham hand rails,5211,"BUILDING MATERIALS, LUMBER STORES",FIRE
REDACTED,32.92,14/10/2015,COPYRIGHT WITNESS LTD,Copyright of Development Programme,7392,"CONSULTING, MANAGEMENT, AND PUBLIC RELATIONS SVCS",FIRE
REDACTED,-0.97,14/10/2015,ASDA HOME SHOPPING,Refund re. above order,5411,"GROCERY STORES, SUPERMARKETS",CHILDREN & YOUNG PEOPLE
REDACTED,20.42,14/10/2015,B & Q,Anchor bolts and cutting disks,5211,"BUILDING MATERIALS, LUMBER STORES",FIRE
REDACTED,76.46,14/10/2015,PREMIER INN 44536490,XXXXX accom 1 Dec RWPG mtg,5812,"EATING PLACES, RESTAURANTS",ENVIRONMENT & TRANSPORT
REDACTED,58.13,14/10/2015,PREMIER INN 44536490,XXXXX accom 27 Jan SG mtg,5812,"EATING PLACES, RESTAURANTS",ENVIRONMENT & TRANSPORT
REDACTED,95.8,15/10/2015,I S & G STEEL STOCK HO,tubing and fittings for handrail at Wattisham,5085,INDUSTRIAL SUPPLIES NOT ELSEWHERE CLASSIFIED,FIRE
REDACTED,339.83,15/10/2015,WHSMITH.CO.UK,Condolence books for operation London bridge,5965,DIRECT MARKETING-COMBINATION CATALOG/RETAIL MERCH.,RESOURCE MANAGEMENT
REDACTED,7.78,15/10/2015,B&Q,Post mix for wattisham hand rails,5211,"BUILDING MATERIALS, LUMBER STORES",FIRE
REDACTED,230,15/10/2015,VIRGINTRAINSEC SERVCS,XXXXX E'boro-London 19 Nov CRWG,4112,PASSENGER RAILWAYS,ENVIRONMENT & TRANSPORT
REDACTED,12.9,15/10/2015,Amazon EU,Cardboard flipchart for BD Team,5969,DIRECT MARKETING-OTHER DIRECT MARKETERS/NOT ELSEW.,RESOURCE MANAGEMENT
REDACTED,3.58,15/10/2015,FASTHOSTS INTERNET,Website for Invest in Suffolk,4816,COMPUTER NETWORK/INFORMATION SERVICES,ENVIRONMENT & TRANSPORT
REDACTED,-11,15/10/2015,DSA THEORY TEST,Refund,9399,GOVERNMENT SERVICES-NOT ELSEWHERE CLASSIFIED,FIRE
REDACTED,81.3,15/10/2015,GREATERANGLIA.CO.UK,XXXXX SCT mtg London,4112,PASSENGER RAILWAYS,RESOURCE MANAGEMENT
REDACTED,13.29,15/10/2015,FOTOSENSE LTD,Camera film,5946,CAMERA AND PHOTOGRAPHIC SUPPLY STORES,PUBLIC HEALTH
REDACTED,-26,15/10/2015,DSA THEORY TEST,Refund,9399,GOVERNMENT SERVICES-NOT ELSEWHERE CLASSIFIED,FIRE
REDACTED,86,15/10/2015,BYTEMARK HOSTING,CYP hosting,5734,COMPUTER SOFTWARE STORES,RESOURCE MANAGEMENT
REDACTED,62.69,16/10/2015,ASDA HOME SHOPPING,Split - ASDA Order for (78.13%),5411,"GROCERY STORES, SUPERMARKETS",CHILDREN & YOUNG PEOPLE
REDACTED,17.55,16/10/2015,ASDA HOME SHOPPING,Split - (21.87%),5411,"GROCERY STORES, SUPERMARKETS",CHILDREN & YOUNG PEOPLE
REDACTED,9,16/10/2015,HSE BOOKS (INTERNET),HS poster for Ipswich East fire station,9399,GOVERNMENT SERVICES-NOT ELSEWHERE CLASSIFIED,FIRE
REDACTED,50,16/10/2015,EB CAS CONFERENCE REA,"Conf Tickets for XXXXX, XXXXX",7399,BUSINESS SERVICES-NOT ELSEWHERE CLASSIFIED,CHIEF EXECS
REDACTED,100,16/10/2015,W M MORRISON PLC,086MM016/31 Food Vouchers,5411,"GROCERY STORES, SUPERMARKETS",CHILDREN & YOUNG PEOPLE
REDACTED,100,16/10/2015,ASDA SUPERSTORE,Food Vouchers,5411,"GROCERY STORES, SUPERMARKETS",CHILDREN & YOUNG PEOPLE
REDACTED,40,16/10/2015,W M MORRISON PLC,Food vouchers for vulnerable families,5411,"GROCERY STORES, SUPERMARKETS",CHILDREN & YOUNG PEOPLE
REDACTED,26.45,16/10/2015,UKOFFICEDIRECT.CO.,Strung Tags for Instruments,5943,"OFFICE, SCHOOL SUPPLY, AND STATIONERY STORES",CHILDREN & YOUNG PEOPLE
REDACTED,0.1,16/10/2015,ASDA HOME SHOPPING,Split - (50%),5411,"GROCERY STORES, SUPERMARKETS",CHILDREN & YOUNG PEOPLE
REDACTED,0.1,16/10/2015,ASDA HOME SHOPPING,Split - (50%),5411,"GROCERY STORES, SUPERMARKETS",CHILDREN & YOUNG PEOPLE
REDACTED,4.8,16/10/2015,LUL TICKET MACHINE,Underground ticket from meeting,4112,PASSENGER RAILWAYS,PUBLIC PROTECTION
REDACTED,-3.95,16/10/2015,ARGOS DIRECT,Delivery charge refund on grant XXXXX.,5964,DIRECT MARKETING-CATALOG MERCHANTS,ADULT & COMMUNITY SERVICES
REDACTED,5.1,19/10/2015,SL-NCP-ADAPTIS ECOM GA,Stowmarket Rail Car Parking,7523,AUTOMOBILE PARKING LOTS AND GARAGES,PUBLIC PROTECTION
REDACTED,131.54,19/10/2015,TRADEINN,Garminx1_AM Da L Plus delivery cost,5964,DIRECT MARKETING-CATALOG MERCHANTS,ENVIRONMENT & TRANSPORT
REDACTED,20,19/10/2015,OYSTER AUTOTOPUP,Auto top up on team oyster card,4112,PASSENGER RAILWAYS,RESOURCE MANAGEMENT
REDACTED,1.69,19/10/2015,Amazon UK Marketplace,New mouse for laptop,5942,BOOK STORES,RESOURCE MANAGEMENT
REDACTED,18.5,19/10/2015,MSFT  <E03001FKBR>,monthly billing for Intune Licence,4816,COMPUTER NETWORK/INFORMATION SERVICES,RESOURCE MANAGEMENT
REDACTED,20,19/10/2015,SUFFOLK COUNTY COUNCIL,URGENT COPY OF BIRTH CERTIFICATE(41566),9399,GOVERNMENT SERVICES-NOT ELSEWHERE CLASSIFIED,RESOURCE MANAGEMENT
REDACTED,-44.88,19/10/2015,NHBS LTD,Returned Bird next boxesx3_XXXXX,5942,BOOK STORES,ENVIRONMENT & TRANSPORT
REDACTED,165,20/10/2015,UP COUNTRY AUTO,Ranger Roof Barsx1 set_XXXXX,5533,"AUTOMOTIVE PARTS, ACCESSORIES STORES",ENVIRONMENT & TRANSPORT
REDACTED,27.25,20/10/2015,SAINSBURYS 0411,food and drink for sessions,5411,"GROCERY STORES, SUPERMARKETS",CHILDREN & YOUNG PEOPLE
REDACTED,26.99,20/10/2015,PAYPAL  CAMPINGONLI,Gas cartridge Pack of 3_XXXXX,5941,SPORTING GOODS STORES,ENVIRONMENT & TRANSPORT
REDACTED,53.92,20/10/2015,ARGOS RETAIL GROUP,3 Wheelie Cases for Fostering Ambassadors,5310,DISCOUNT STORES,CHILDREN & YOUNG PEOPLE
REDACTED,9.25,20/10/2015,GRO HM PASSPORT OFFICE,Birth Cert x1 CB 086GS120/1,9399,GOVERNMENT SERVICES-NOT ELSEWHERE CLASSIFIED,CHILDREN & YOUNG PEOPLE
REDACTED,32.95,20/10/2015,ASDA 4387,Safety Gate for f/c XXXXX,5411,"GROCERY STORES, SUPERMARKETS",CHILDREN & YOUNG PEOPLE
REDACTED,249.17,20/10/2015,TURNERS(IPSWICH),SERVICE EX63 MHV,7538,AUTOMOTIVE SERVICE SHOPS,FIRE
REDACTED,20.75,20/10/2015,TOOLSTATION LTD,dummy cctv camera for stores,5251,HARDWARE STORES,FIRE
REDACTED,36.63,20/10/2015,TOOLSTATION LTD,dummy cctv camera and warning signs for stores,5251,HARDWARE STORES,FIRE
REDACTED,15.49,20/10/2015,FEEDSAFE/QUINTONS,Gas,5995,PET SHOPS - PET FOODS AND SUPPLIES,FIRE
REDACTED,13.64,20/10/2015,ASDA  STORES 4218,"Snack for Stay & Play, Just Toddling, Twins Group",5411,"GROCERY STORES, SUPERMARKETS",CHILDREN & YOUNG PEOPLE
REDACTED,29.67,20/10/2015,ASDA HOME SHOPPING,Food for Groups O-N2015 R1,5411,"GROCERY STORES, SUPERMARKETS",CHILDREN & YOUNG PEOPLE
REDACTED,-1.85,20/10/2015,ASDA HOME SHOPPING,Food for Groups O-N2015 R1 (Refund),5411,"GROCERY STORES, SUPERMARKETS",CHILDREN & YOUNG PEOPLE
REDACTED,249.17,20/10/2015,SURVEYMONKEY.COM,Renewing Survey Monkey licence,4816,COMPUTER NETWORK/INFORMATION SERVICES,CHILDREN & YOUNG PEOPLE
REDACTED,10.26,21/10/2015,Amazon EU,"Looked After Children, Books for the home",5969,DIRECT MARKETING-OTHER DIRECT MARKETERS/NOT ELSEW.,ADULT & COMMUNITY SERVICES
REDACTED,50,21/10/2015,TESCO STORE 3240,Healthy snack for sessions,5411,"GROCERY STORES, SUPERMARKETS",CHILDREN & YOUNG PEOPLE
REDACTED,148.14,21/10/2015,W J GREEN LTD,Machine service Parts,5251,HARDWARE STORES,ENVIRONMENT & TRANSPORT
REDACTED,28.98,21/10/2015,WWW.MANDMDIRECT.COM,Looked After Children clothing for SC,5941,SPORTING GOODS STORES,ADULT & COMMUNITY SERVICES
REDACTED,33.33,21/10/2015,EB IS REUSE THE FUTUR,Conference attendance fee for XXXXX,7399,BUSINESS SERVICES-NOT ELSEWHERE CLASSIFIED,ENVIRONMENT & TRANSPORT
REDACTED,1.9,21/10/2015,Amazon UK Marketplace,Stress Ball for XXXXX,5942,BOOK STORES,CHILDREN & YOUNG PEOPLE
REDACTED,66,21/10/2015,GREATERANGLIA.CO.UK,XXXXX travel to London On Pensions,4112,PASSENGER RAILWAYS,RESOURCE MANAGEMENT
REDACTED,70.2,21/10/2015,GRO HM PASSPORT OFFICE,Bir4th cert for XXXXX (id: 800916),9399,GOVERNMENT SERVICES-NOT ELSEWHERE CLASSIFIED,CHILDREN & YOUNG PEOPLE
REDACTED,2.64,21/10/2015,5541 WATTISHAM,Dairy free meal for delegate,5811,CATERERS,FIRE
REDACTED,897.5,21/10/2015,FLOREAM LIMITED,Digital Business Leadership XXXXX,8220,"COLLEGES, UNIV, PRO SCHOOLS, JUNIOR COLLEGES",RESOURCE MANAGEMENT
REDACTED,1000,21/10/2015,FLOREAM LIMITED,Digital Business Leadership XXXXX,8220,"COLLEGES, UNIV, PRO SCHOOLS, JUNIOR COLLEGES",RESOURCE MANAGEMENT
REDACTED,35.98,22/10/2015,Amazon EU,Books,5969,DIRECT MARKETING-OTHER DIRECT MARKETERS/NOT ELSEW.,RESOURCE MANAGEMENT
REDACTED,24.2,22/10/2015,WWW.OFFICESUPPLIES.ORG,Sticky hook pads for displays,5943,"OFFICE, SCHOOL SUPPLY, AND STATIONERY STORES",PUBLIC HEALTH
REDACTED,8.2,22/10/2015,SL-NCP-ADAPTIS ECOM GA,Parking for SPoC review meeting,7523,AUTOMOBILE PARKING LOTS AND GARAGES,PUBLIC PROTECTION
REDACTED,30.6,22/10/2015,JOHNSON CLEANERS,Cleaning Jackets for re-issue,7216,DRY CLEANERS,PUBLIC PROTECTION
REDACTED,49.95,22/10/2015,THE BOOK PEOPLE,Christmas books for children's centre,5942,BOOK STORES,CHILDREN & YOUNG PEOPLE
REDACTED,86.91,22/10/2015,ARCO LTD,Team P.P.E,5085,INDUSTRIAL SUPPLIES NOT ELSEWHERE CLASSIFIED,FIRE
REDACTED,49.58,22/10/2015,FILOFAX LETTS BLUELINE,2016 Diary inserts,5999,MISCELLANEOUS AND SPECIALTY RETAIL STORES,CHILDREN & YOUNG PEOPLE
REDACTED,142.02,22/10/2015,ASDA HOME SHOPPING,Looked after Children - Provisions,5411,"GROCERY STORES, SUPERMARKETS",CHILDREN & YOUNG PEOPLE
REDACTED,80,22/10/2015,M&S E COMMERCE,"Winter coats - XXXXX, XXXXX, XXXXX",5411,"GROCERY STORES, SUPERMARKETS",CHILDREN & YOUNG PEOPLE
REDACTED,-0.09,22/10/2015,ASDA HOME SHOPPING,Looked after Children - Provisions,5411,"GROCERY STORES, SUPERMARKETS",CHILDREN & YOUNG PEOPLE
REDACTED,15.46,23/10/2015,Amazon UK Marketplace,"LOOKED AFTER CHILDREN 
Incentive - TT",5942,BOOK STORES,CHILDREN & YOUNG PEOPLE
REDACTED,155.47,23/10/2015,HIPPODROMECIRCUS.C,Christmas spectacular tickets 29.12.15,7922,"THEATRICAL PRODUCERS(EXCL MOTION PIX),TICKET AGNCY",CHILDREN & YOUNG PEOPLE
REDACTED,53.94,23/10/2015,ARGOS RETAIL GROUP,re. Dictaphone for XXXXX,5310,DISCOUNT STORES,CHILDREN & YOUNG PEOPLE
REDACTED,2.03,23/10/2015,B & Q,Timber for projector screen Orford,5211,"BUILDING MATERIALS, LUMBER STORES",FIRE
REDACTED,22.5,23/10/2015,VIRGINTRAINSEC SERVCS,XXXXX E'boro-Penrith 17 Nov,4112,PASSENGER RAILWAYS,ENVIRONMENT & TRANSPORT
REDACTED,15.6,23/10/2015,DENMANS ELECTRICAL IPS,sockets and boxes for projector project,5065,ELECTRICAL PARTS AND EQUIPMENT,FIRE
REDACTED,9.25,23/10/2015,GRO HM PASSPORT OFFICE,Birth Cert x1 CP 086GS118/1,9399,GOVERNMENT SERVICES-NOT ELSEWHERE CLASSIFIED,CHILDREN & YOUNG PEOPLE
REDACTED,408.94,23/10/2015,ARGOS RETAIL GROUP,Furniture and Equipment grant - XXXXX,5310,DISCOUNT STORES,ADULT & COMMUNITY SERVICES
REDACTED,218.92,23/10/2015,ARGOS RETAIL GROUP,Furniture and Equipment grant - XXXXX,5310,DISCOUNT STORES,ADULT & COMMUNITY SERVICES
REDACTED,73.98,23/10/2015,FEEDSAFE/QUINTONS,Gas,5995,PET SHOPS - PET FOODS AND SUPPLIES,FIRE
REDACTED,373.36,23/10/2015,ARGOS RETAIL GROUP,Furniture and Equipment grant - XXXXX,5310,DISCOUNT STORES,ADULT & COMMUNITY SERVICES
REDACTED,8.13,23/10/2015,NAS UK,086MM016/25 Autism Cards,8398,"ORGANIZATIONS, CHARITABLE AND SOCIAL SERVICES",CHILDREN & YOUNG PEOPLE
REDACTED,3.91,23/10/2015,SAFETYLABEL,Looked After Children Health & Safety sign,8999,PROFESSIONAL SERVICES-NOT ELSEWHERE CLASSIFIED,ADULT & COMMUNITY SERVICES
REDACTED,14.65,23/10/2015,WAITROSE 658,Vol supplies,5411,"GROCERY STORES, SUPERMARKETS",ENVIRONMENT & TRANSPORT
REDACTED,137.5,23/10/2015,TURNER MOTOR GROUP,SERVICE FDS CAR,7538,AUTOMOTIVE SERVICE SHOPS,FIRE
REDACTED,39.16,23/10/2015,ASDA HOME SHOPPING,B2M Food Order 20 Oct 15,5411,"GROCERY STORES, SUPERMARKETS",CHILDREN & YOUNG PEOPLE
REDACTED,-0.43,23/10/2015,ASDA HOME SHOPPING,B2M Food Order Reimburse 20 Oct 15,5411,"GROCERY STORES, SUPERMARKETS",CHILDREN & YOUNG PEOPLE
REDACTED,75.44,23/10/2015,ARGOS RETAIL GROUP,Chest of drawers for XXXXX,5310,DISCOUNT STORES,CHILDREN & YOUNG PEOPLE
REDACTED,208.94,23/10/2015,ARGOS RETAIL GROUP,Furniture and Equipment grant - XXXXX.,5310,DISCOUNT STORES,ADULT & COMMUNITY SERVICES
REDACTED,184.67,26/10/2015,TRAINLINE,Looked after children trip to London,4112,PASSENGER RAILWAYS,CHILDREN & YOUNG PEOPLE
REDACTED,20.15,26/10/2015,FACEBOOK MDPH58W452,advertising,7311,ADVERTISING SERVICES,RESOURCE MANAGEMENT
REDACTED,4.4,26/10/2015,POST OFFICE COUNTER,Postage Return FIREBIKE,9402,POSTAL SERVICES-GOVERNMENT ONLY,PUBLIC PROTECTION
REDACTED,36.3,26/10/2015,GREATERANGLIA.CO.UK,XXXXX Investment Managers Mtgs London,4112,PASSENGER RAILWAYS,RESOURCE MANAGEMENT
REDACTED,83.32,26/10/2015,MOTHERCARE DIRECT-E-CO,Motorola Video Baby Monitor,5311,DEPARTMENT STORES,CHILDREN & YOUNG PEOPLE
REDACTED,77.7,26/10/2015,GREATERANGLIA.CO.UK,Rail ticket - East Coast Flood Gp Mtg.,4112,PASSENGER RAILWAYS,PUBLIC PROTECTION
REDACTED,10.29,26/10/2015,Amazon UK Marketplace,Padded Halter auth XXXXX,5942,BOOK STORES,PUBLIC PROTECTION
REDACTED,39.5,26/10/2015,WWW.GIFTS.SBSDIGITAL.C,"LOOKED AFTER CHILDREN 
School Photo's XXXXX + XXXXX",7221,PHOTOGRAPHIC STUDIOS,CHILDREN & YOUNG PEOPLE
REDACTED,20,26/10/2015,OYSTER AUTOTOPUP,AUTO TOP OF SUFFOLK LEGAL OYSTERCARD,4112,PASSENGER RAILWAYS,RESOURCE MANAGEMENT
REDACTED,2.99,26/10/2015,Amazon EU,"Looked After Children, books for the home",5969,DIRECT MARKETING-OTHER DIRECT MARKETERS/NOT ELSEW.,ADULT & COMMUNITY SERVICES
REDACTED,145.83,26/10/2015,NOVOTEL LONDON WEST,Cllr XXXXX hotel for meetings in London,7011,"LODGING-HOTELS,MOTELS,RESORTS-NOT CLASSIFIED",RESOURCE MANAGEMENT
REDACTED,4.36,26/10/2015,MSFT  <E08001I607>,Multi-Factor Authentication Pay as you Go for O365 Lab,4816,COMPUTER NETWORK/INFORMATION SERVICES,RESOURCE MANAGEMENT
REDACTED,122,27/10/2015,BIGBUS SIGHTSEEING,"LOOKED AFTER CHILDREN
Half term activity
Lndn Bus",4131,BUS LINES,CHILDREN & YOUNG PEOPLE
REDACTED,9.25,27/10/2015,GRO HM PASSPORT OFFICE,URGENT COPY OF BIRTH CERTIFICATE(43232),9399,GOVERNMENT SERVICES-NOT ELSEWHERE CLASSIFIED,RESOURCE MANAGEMENT
REDACTED,37,27/10/2015,DSA THEORY TEST,Theory test booked by XXXXX,9399,GOVERNMENT SERVICES-NOT ELSEWHERE CLASSIFIED,FIRE
REDACTED,5.87,27/10/2015,ASDA  STORES 4218,Cleaning Materials,5411,"GROCERY STORES, SUPERMARKETS",CHILDREN & YOUNG PEOPLE
REDACTED,9.11,27/10/2015,ASDA  STORES 4218,"Snack for Stay & Play, Just Toddling, Twins Group",5411,"GROCERY STORES, SUPERMARKETS",CHILDREN & YOUNG PEOPLE
REDACTED,1.55,28/10/2015,GO METRO GARE DU MIDI,Metro for EWG meeting,4789,TRANSPORTATION SERVICES NOT ELSEWHERE CLASSIFIED,PUBLIC PROTECTION
REDACTED,10.88,28/10/2015,Amazon UK Marketplace,replacement stylus for XXXXX iPad,5942,BOOK STORES,PUBLIC PROTECTION
REDACTED,35,28/10/2015,WWW.JA.NET,XXXXX cert - itrent.suffolk.gov.uk,8699,"ORGANIZATIONS, MEMBERSHIP-NOT ELSEWHERE CLASSIFIED",RESOURCE MANAGEMENT
REDACTED,37.95,28/10/2015,PAYPAL  NEWFROG.COM,Military Waste Bag with water bottle holder,5611,MEN'S AND BOY'S CLOTHING AND ACCESSORIES STORES,ENVIRONMENT & TRANSPORT
REDACTED,102.95,28/10/2015,PAPERSTONE,Name Badges (XXXXX),5943,"OFFICE, SCHOOL SUPPLY, AND STATIONERY STORES",ENVIRONMENT & TRANSPORT
REDACTED,27.75,28/10/2015,GRO HM PASSPORT OFFICE,"B. cert x3 B-M W1086648,XXXXX-XXXXXP-A525493,XXXXX-A1066183",9399,GOVERNMENT SERVICES-NOT ELSEWHERE CLASSIFIED,CHILDREN & YOUNG PEOPLE
REDACTED,18.12,28/10/2015,B & Q,Coat hooks and dryer splash backs Woodbridge,5211,"BUILDING MATERIALS, LUMBER STORES",FIRE
REDACTED,49.98,28/10/2015,WWW.MAPLIN.CO.UK,maglock for bury ambul door,5732,ELECTRONIC SALES,FIRE
REDACTED,7.5,28/10/2015,TESCO STORES 6179,Food for Groups O-N2015 R3,5411,"GROCERY STORES, SUPERMARKETS",CHILDREN & YOUNG PEOPLE
REDACTED,25,28/10/2015,OYSTER ISSUE WEB,Oyster Card Top,4112,PASSENGER RAILWAYS,RESOURCE MANAGEMENT
REDACTED,26,28/10/2015,DSA THEORY TEST,Theory test booked by XXXXX,9399,GOVERNMENT SERVICES-NOT ELSEWHERE CLASSIFIED,FIRE
REDACTED,274,28/10/2015,GREATERANGLIA.CO.UK,XXXXX Cllr XXXXX Pensions Mtg,4112,PASSENGER RAILWAYS,RESOURCE MANAGEMENT
REDACTED,16.45,28/10/2015,B & Q,Cable clips and flex for projectors,5211,"BUILDING MATERIALS, LUMBER STORES",FIRE
REDACTED,38.15,28/10/2015,ASDA HOME SHOPPING,Food for Groups O-N2015 R2,5411,"GROCERY STORES, SUPERMARKETS",CHILDREN & YOUNG PEOPLE
REDACTED,59.55,28/10/2015,ASDA HOME SHOPPING,Prevention B2M Food Order,5411,"GROCERY STORES, SUPERMARKETS",CHILDREN & YOUNG PEOPLE
REDACTED,0.38,28/10/2015,ASDA HOME SHOPPING,Food for Groups O-N2015 R2,5411,"GROCERY STORES, SUPERMARKETS",CHILDREN & YOUNG PEOPLE
REDACTED,1,28/10/2015,ASDA HOME SHOPPING,Prevention B2M Food Order Delivery Fee,5411,"GROCERY STORES, SUPERMARKETS",CHILDREN & YOUNG PEOPLE
REDACTED,103.94,28/10/2015,ARGOS RETAIL GROUP,Furniture and Equipment grant - XXXXX.,5310,DISCOUNT STORES,ADULT & COMMUNITY SERVICES
REDACTED,46.28,28/10/2015,ASDA HOME SHOPPING,Food and Drink for groups,5411,"GROCERY STORES, SUPERMARKETS",CHILDREN & YOUNG PEOPLE
REDACTED,0.1,28/10/2015,ASDA HOME SHOPPING,Food and Drink for Groups,5411,"GROCERY STORES, SUPERMARKETS",CHILDREN & YOUNG PEOPLE
REDACTED,84.81,29/10/2015,Amazon UK Marketplace,Equipment for Zipwire sessions - Auth by XXXXX,5942,BOOK STORES,CHILDREN & YOUNG PEOPLE
REDACTED,39.5,29/10/2015,HIPPODROMECIRCUS.C,Looked after Children - Activity XXXXX,7922,"THEATRICAL PRODUCERS(EXCL MOTION PIX),TICKET AGNCY",CHILDREN & YOUNG PEOPLE
REDACTED,1.79,29/10/2015,FASTHOSTS INTERNET,Invest in Suffolk Website,4816,COMPUTER NETWORK/INFORMATION SERVICES,ENVIRONMENT & TRANSPORT
REDACTED,134.96,29/10/2015,TRAVELODGE WEBSITE,OVERNIGHT STAY IN ADVANCE OF COURT CASE,3615,TRAVELODGE,RESOURCE MANAGEMENT
REDACTED,6.35,29/10/2015,SP  SHERWOOD DIA,Sherwood YOS Diary for XXXXX,5734,COMPUTER SOFTWARE STORES,CHILDREN & YOUNG PEOPLE
REDACTED,208.8,29/10/2015,BIGDUG LIMITED,Racking and shelving for XXXXX,5072,HARDWARE EQUIPMENT AND SUPPLIES,FIRE
REDACTED,6.18,29/10/2015,TESCO STORES 4483,Items for the children's centre Office area.,5411,"GROCERY STORES, SUPERMARKETS",CHILDREN & YOUNG PEOPLE
REDACTED,2032.87,29/10/2015,BLS SHAREGATE,SharePoint Data Migration & Security Analysis Tool,5734,COMPUTER SOFTWARE STORES,FIRE
REDACTED,3.76,30/10/2015,Amazon UK Marketplace,Equipment for Zipwire sessions - Auth by XXXXX,5942,BOOK STORES,CHILDREN & YOUNG PEOPLE
REDACTED,2.05,30/10/2015,Amazon UK Marketplace,Equipment for Zipwire sessions - Auth by XXXXX,5942,BOOK STORES,CHILDREN & YOUNG PEOPLE
REDACTED,3.12,30/10/2015,Amazon UK Marketplace,Equipment for Zipwire sessions - Auth by XXXXX,5942,BOOK STORES,CHILDREN & YOUNG PEOPLE
REDACTED,26.85,30/10/2015,Amazon UK Marketplace,Equipment for Zipwire sessions - Auth by XXXXX,5942,BOOK STORES,CHILDREN & YOUNG PEOPLE
REDACTED,3.45,30/10/2015,Amazon UK Marketplace,Equipment for Zipwire sessions - Auth by XXXXX,5942,BOOK STORES,CHILDREN & YOUNG PEOPLE
REDACTED,10.9,30/10/2015,Amazon UK Marketplace,Equipment for Zipwire sessions - Auth by XXXXX,5942,BOOK STORES,CHILDREN & YOUNG PEOPLE
REDACTED,12,30/10/2015,WWW.NORFOLK.GOV.UK,Birth Certificate for XXXXX,9399,GOVERNMENT SERVICES-NOT ELSEWHERE CLASSIFIED,CHILDREN & YOUNG PEOPLE
REDACTED,10,30/10/2015,B&Q,3 BOXES OF HAND WIPES,5211,"BUILDING MATERIALS, LUMBER STORES",ENVIRONMENT & TRANSPORT
REDACTED,576.8,30/10/2015,WHITEHOUSE SITE,plaque for ambul/fire at Bury,5812,"EATING PLACES, RESTAURANTS",FIRE
REDACTED,13.74,30/10/2015,WWW.EDVENTURE.CO.UK,Equipment_XXXXX,5945,"GAME, TOY, AND HOBBY SHOPS",ENVIRONMENT & TRANSPORT
REDACTED,36.75,30/10/2015,WWW.BOUNDTREE.CO.U,Various Bandages_XXXXX,8099,"HEALTH PRACTITIONERS, MEDICAL SRVCS-NOT ELSEWHERE",ENVIRONMENT & TRANSPORT
REDACTED,29.99,30/10/2015,SCREWFIX,PPE boots and gloves.,5211,"BUILDING MATERIALS, LUMBER STORES",PUBLIC PROTECTION
REDACTED,6.8,30/10/2015,THE PET MEDICINE C,Tick Reomovers_XXXXX,5995,PET SHOPS - PET FOODS AND SUPPLIES,ENVIRONMENT & TRANSPORT
REDACTED,48.72,30/10/2015,IPSWICH BC,4x Resident Parking Permits Ips N&E Social Care Tm,7299,OTHER SERVICES (NOT ELSEWHERE CLASSIFIED),CHILDREN & YOUNG PEOPLE
REDACTED,38.99,30/10/2015,PAYPAL  TEESACTIVEL,Equipment_XXXXX,5941,SPORTING GOODS STORES,ENVIRONMENT & TRANSPORT
REDACTED,25.4,30/10/2015,SAFETYSUPPL,"Dessings, Eye Pad & Tweezers_XXXXX",5311,DEPARTMENT STORES,ENVIRONMENT & TRANSPORT
REDACTED,13.71,30/10/2015,ARCO LTD,premises thermal gloves,5085,INDUSTRIAL SUPPLIES NOT ELSEWHERE CLASSIFIED,FIRE
REDACTED,6.4,30/10/2015,B & Q,cord for projectors screens,5211,"BUILDING MATERIALS, LUMBER STORES",FIRE
REDACTED,48.68,30/10/2015,ASDA HOME SHOPPING,B2M Food Order 27 Oct 15,5411,"GROCERY STORES, SUPERMARKETS",CHILDREN & YOUNG PEOPLE
REDACTED,-28.98,30/10/2015,WWW.MANDMDIRECT.COM,Looked After Children clothing for SC refund,5941,SPORTING GOODS STORES,ADULT & COMMUNITY SERVICES
REDACTED,57.6,30/10/2015,MERCURE HULL WEST HOTE,Hotel Accommodation for SEED user forum in Hull.,7011,"LODGING-HOTELS,MOTELS,RESORTS-NOT CLASSIFIED",FIRE
REDACTED,79,02/11/2015,Amazon Prime,In dispute,5968,DIRECT MARKETING-CONTINUITY/SUBSCRIPTION MERCHANTS,CHILDREN & YOUNG PEOPLE
REDACTED,41.64,02/11/2015,CURRYS SUPERSTORE,Ink cartridges for printer,5732,ELECTRONIC SALES,ENVIRONMENT & TRANSPORT
REDACTED,29.82,02/11/2015,FACEBOOK 2TLL68N552,advertising,7311,ADVERTISING SERVICES,RESOURCE MANAGEMENT
REDACTED,232.58,02/11/2015,ARGOS RETAIL GROUP,Furniture and Equipment grant - XXXXX.,5310,DISCOUNT STORES,ADULT & COMMUNITY SERVICES
REDACTED,43,02/11/2015,PARENTPAY.COM,"LOOKED AFTER CHILDREN
XXXXX school trip - Lille",8220,"COLLEGES, UNIV, PRO SCHOOLS, JUNIOR COLLEGES",CHILDREN & YOUNG PEOPLE
REDACTED,228.94,02/11/2015,ARGOS RETAIL GROUP,Furniture and Equipment grant - XXXXX,5310,DISCOUNT STORES,ADULT & COMMUNITY SERVICES
REDACTED,6.81,02/11/2015,ROADCHEF CLACKET L,Drinks before out of county meeting,7011,"LODGING-HOTELS,MOTELS,RESORTS-NOT CLASSIFIED",FIRE
REDACTED,25.92,03/11/2015,Amazon UK Marketplace,Thread for hanging stars installation,5942,BOOK STORES,ENVIRONMENT & TRANSPORT
REDACTED,28.32,03/11/2015,Amazon UK Marketplace,Materials for groups O-N2015 R5,5942,BOOK STORES,CHILDREN & YOUNG PEOPLE
REDACTED,24.52,03/11/2015,WAITROSE 140,food and drink for sessions,5411,"GROCERY STORES, SUPERMARKETS",CHILDREN & YOUNG PEOPLE
REDACTED,41.05,03/11/2015,WWW.FLINTS.CO.UK,Fireproofing for stars installation,5691,MEN'S AND WOMEN'S CLOTHING STORES,ENVIRONMENT & TRANSPORT
REDACTED,10.48,03/11/2015,Amazon UK Marketplace,We are listening equipment,5942,BOOK STORES,RESOURCE MANAGEMENT
REDACTED,11.05,03/11/2015,ASDA  STORES 4218,"Snack for Stay & Play, Just Toddling, Twins Groups",5411,"GROCERY STORES, SUPERMARKETS",CHILDREN & YOUNG PEOPLE
REDACTED,2.56,03/11/2015,ASDA  STORES 4218,Baby Wipes,5411,"GROCERY STORES, SUPERMARKETS",CHILDREN & YOUNG PEOPLE
REDACTED,79,03/11/2015,NOVOTEL SHEFFIELD,Hotel accommodation for CIEEM Annual Conference,7011,"LODGING-HOTELS,MOTELS,RESORTS-NOT CLASSIFIED",ENVIRONMENT & TRANSPORT
REDACTED,31.78,03/11/2015,ASDA HOME SHOPPING,Food for groups O-N2015 R4,5411,"GROCERY STORES, SUPERMARKETS",CHILDREN & YOUNG PEOPLE
REDACTED,-2.28,03/11/2015,ASDA HOME SHOPPING,Refund for Substituted items O-N2015 R4,5411,"GROCERY STORES, SUPERMARKETS",CHILDREN & YOUNG PEOPLE
REDACTED,-133.29,03/11/2015,TRAVELODGE WEBSITE,"OVERNIGHT STAY IN ADVANCE OF COURT CASE(REFUNDED,",3615,TRAVELODGE,RESOURCE MANAGEMENT
REDACTED,133.29,03/11/2015,WWW.GREATART.CO.UK,Materials for art workshops,5970,"ARTIST SUPPLY STORES, CRAFT SHOPS",CHILDREN & YOUNG PEOPLE
REDACTED,196,04/11/2015,TSHIRT STUDIO LTD,T shirts to advertise XXXXX,5999,MISCELLANEOUS AND SPECIALTY RETAIL STORES,RESOURCE MANAGEMENT
REDACTED,124.08,04/11/2015,TRAVELODGE WEBSITE,Hotel for XXXXX to attend training course.,3615,TRAVELODGE,CHILDREN & YOUNG PEOPLE
REDACTED,22.3,04/11/2015,"Amazon Svcs Europe,SAR",086MM016/36 The Bear Feelings Cards,5942,BOOK STORES,CHILDREN & YOUNG PEOPLE
REDACTED,313.57,04/11/2015,Amazon web services,onesuffolk hosting,7399,BUSINESS SERVICES-NOT ELSEWHERE CLASSIFIED,RESOURCE MANAGEMENT
REDACTED,15,04/11/2015,HMCOURTS-SERVICE.G,Looked after Children - XXXXX fine,9222,FINES,CHILDREN & YOUNG PEOPLE
REDACTED,5.33,04/11/2015,B & Q,screen cleaner for van,5211,"BUILDING MATERIALS, LUMBER STORES",FIRE
REDACTED,133.51,04/11/2015,B & Q,"New door and furniture, paint for Beccles",5211,"BUILDING MATERIALS, LUMBER STORES",FIRE
REDACTED,14.4,04/11/2015,GREATER ANGLIA,XXXXX H'worth-Ipswich RWM mtg,4112,PASSENGER RAILWAYS,ENVIRONMENT & TRANSPORT
REDACTED,135,05/11/2015,CORUS HOTEL HYDE PARK,Hotel accommodation for CECA Annual Dinner,7011,"LODGING-HOTELS,MOTELS,RESORTS-NOT CLASSIFIED",ENVIRONMENT & TRANSPORT
REDACTED,142,05/11/2015,EUROSTAR INTERNET,Eurostar for EWG meeting Brussels,4112,PASSENGER RAILWAYS,PUBLIC PROTECTION
REDACTED,5.76,05/11/2015,"Amazon Svcs Europe,SAR",batteries for turning point handsets,5942,BOOK STORES,RESOURCE MANAGEMENT
REDACTED,23.4,05/11/2015,GRO HM PASSPORT OFFICE,Birth Cert for mother of XXXXX,9399,GOVERNMENT SERVICES-NOT ELSEWHERE CLASSIFIED,CHILDREN & YOUNG PEOPLE
REDACTED,4.58,05/11/2015,SCREWFIX,Draw Runners for kitchen.,5211,"BUILDING MATERIALS, LUMBER STORES",PUBLIC PROTECTION
REDACTED,45.1,05/11/2015,GREATERANGLIA.CO.UK,Train ticket for XXXXX - London,4112,PASSENGER RAILWAYS,RESOURCE MANAGEMENT
REDACTED,11,05/11/2015,SUFFOLK COUNTY COUNCIL,Looked After Children XXXXX Birth Certificate,9399,GOVERNMENT SERVICES-NOT ELSEWHERE CLASSIFIED,ADULT & COMMUNITY SERVICES
REDACTED,157.66,05/11/2015,ASDA HOME SHOPPING,Looked after children - Provisions,5411,"GROCERY STORES, SUPERMARKETS",CHILDREN & YOUNG PEOPLE
REDACTED,93.31,05/11/2015,GRAMMARLY.COM,Grammarly,8999,PROFESSIONAL SERVICES-NOT ELSEWHERE CLASSIFIED,RESOURCE MANAGEMENT
REDACTED,0.81,05/11/2015,ASDA HOME SHOPPING,Looked after Children - Provisions,5411,"GROCERY STORES, SUPERMARKETS",CHILDREN & YOUNG PEOPLE
REDACTED,8.13,06/11/2015,Amazon UK Marketplace,Tempered screen protectors for staff mobiles,5942,BOOK STORES,CHILDREN & YOUNG PEOPLE
REDACTED,8.13,06/11/2015,Amazon UK Marketplace,5 Nokia Lumia 635 tempered Glass screens,5942,BOOK STORES,CHILDREN & YOUNG PEOPLE
REDACTED,40,06/11/2015,Amazon EU,Enforcement books for XXXXX,5969,DIRECT MARKETING-OTHER DIRECT MARKETERS/NOT ELSEW.,RESOURCE MANAGEMENT
REDACTED,638.6,06/11/2015,KEYTEK VT,Replacement Locks & Security upgrade 086LS077/1,1750,CARPENTRY CONTRACTORS,CHILDREN & YOUNG PEOPLE
REDACTED,30,06/11/2015,GREATERANGLIA.CO.UK,XXXXX Travel to London for Pension Mtgs,4112,PASSENGER RAILWAYS,RESOURCE MANAGEMENT
REDACTED,76.62,06/11/2015,TRAVELODGE WEBSITE,Share learning on dealing with community tensions,3615,TRAVELODGE,PUBLIC HEALTH
REDACTED,150,06/11/2015,MARKS & SPENCER,"NHS Long Service Award, 38 years XXXXX",5411,"GROCERY STORES, SUPERMARKETS",CHILDREN & YOUNG PEOPLE
REDACTED,23.4,06/11/2015,GRO HM PASSPORT OFFICE,Birth cert for mother of XXXXX (id: 428379),9399,GOVERNMENT SERVICES-NOT ELSEWHERE CLASSIFIED,CHILDREN & YOUNG PEOPLE
REDACTED,17.5,06/11/2015,WWW.JUMPSTREET.CO.,Activity Programme (socks),7997,"CLUBS-CNTRY,MBRSHIP(ATHLET,REC,SPRTS,PRIVATE GOLF",CHILDREN & YOUNG PEOPLE
REDACTED,129,06/11/2015,JUMPSTREET.CO.UK,Activity Programme Jump street 14/11/15,7997,"CLUBS-CNTRY,MBRSHIP(ATHLET,REC,SPRTS,PRIVATE GOLF",CHILDREN & YOUNG PEOPLE
REDACTED,129,06/11/2015,JUMPSTREET.CO.UK,Activity Programme Jump street,7997,"CLUBS-CNTRY,MBRSHIP(ATHLET,REC,SPRTS,PRIVATE GOLF",CHILDREN & YOUNG PEOPLE
REDACTED,55.4,06/11/2015,EASTERN HOSE & HYDRAUL,Replacement Hose for Eye,5085,INDUSTRIAL SUPPLIES NOT ELSEWHERE CLASSIFIED,FIRE
REDACTED,50.94,06/11/2015,B & Q,Paint for Eye fire station office,5211,"BUILDING MATERIALS, LUMBER STORES",FIRE
REDACTED,10,06/11/2015,GOV.UK/DART-CHARGE,Dart Charge Account,4784,"BRIDGE AND ROAD FEES, TOLLS",PUBLIC PROTECTION
REDACTED,40.86,06/11/2015,ASDA HOME SHOPPING,ASDA B2M Food Order 17742566301,5411,"GROCERY STORES, SUPERMARKETS",CHILDREN & YOUNG PEOPLE
REDACTED,0.51,06/11/2015,ASDA HOME SHOPPING,ASDA B2M Food Order 17742566301,5411,"GROCERY STORES, SUPERMARKETS",CHILDREN & YOUNG PEOPLE
REDACTED,-1.7,06/11/2015,ASDA HOME SHOPPING,Reimburse ASDA Order - split crisp bags,5411,"GROCERY STORES, SUPERMARKETS",CHILDREN & YOUNG PEOPLE
REDACTED,-23.4,06/11/2015,GRO HM PASSPORT OFFICE,Birth cert reimburse for mother of XXXXX id: 42837,9399,GOVERNMENT SERVICES-NOT ELSEWHERE CLASSIFIED,CHILDREN & YOUNG PEOPLE
REDACTED,6.95,09/11/2015,Amazon UK Marketplace,Lunging Leads auth XXXXX,5942,BOOK STORES,PUBLIC PROTECTION
REDACTED,21,09/11/2015,GREATER ANGLIA T/O,"XXXXX, London-H'worth, amended ticket 19 Nov",4112,PASSENGER RAILWAYS,ENVIRONMENT & TRANSPORT
REDACTED,84,09/11/2015,417 BEELINE TAXIS,Taxi arranged for child to return to placement,4121,LIMOUSINES AND TAXICABS,ADULT & COMMUNITY SERVICES
REDACTED,2.8,09/11/2015,POST OFFICE COUNTER,Postage Return to Hunters,9402,POSTAL SERVICES-GOVERNMENT ONLY,PUBLIC PROTECTION
REDACTED,128.99,09/11/2015,ARGOS RETAIL GROUP,Brook House (Hoover),5310,DISCOUNT STORES,CHILDREN & YOUNG PEOPLE
REDACTED,5.7,09/11/2015,GREATERANGLIA.CO.UK,XXXXXX Devolution Mtg Bury St Edmunds,4112,PASSENGER RAILWAYS,RESOURCE MANAGEMENT
REDACTED,13.54,09/11/2015,Amazon UK Marketplace,Cotton Show Halter Auth XXXXX,5942,BOOK STORES,PUBLIC PROTECTION
REDACTED,160.65,09/11/2015,TRAINLINE,2 x train tickets XXXXX & XXXXX Essex data London,4112,PASSENGER RAILWAYS,FIRE
REDACTED,92,09/11/2015,ALLPAY.NET VISA AND MA,Pay Rent arrears - 086LS078/1,8398,"ORGANIZATIONS, CHARITABLE AND SOCIAL SERVICES",CHILDREN & YOUNG PEOPLE
REDACTED,66,09/11/2015,GREATERANGLIA.CO.UK,Split - (50%),4112,PASSENGER RAILWAYS,RESOURCE MANAGEMENT
REDACTED,66,09/11/2015,GREATERANGLIA.CO.UK,Split - (50%),4112,PASSENGER RAILWAYS,RESOURCE MANAGEMENT
REDACTED,89,09/11/2015,GREATERANGLIA.CO.UK,XXXXX travel to London,4112,PASSENGER RAILWAYS,RESOURCE MANAGEMENT
REDACTED,124.4,09/11/2015,WWW.CORAM.ORG.UK,11xBAAF Effective Fostering Panels Books,8398,"ORGANIZATIONS, CHARITABLE AND SOCIAL SERVICES",CHILDREN & YOUNG PEOPLE
REDACTED,-23.4,09/11/2015,GRO HM PASSPORT OFFICE,Birth Cert reimburse for mum of XXXXXX (id 428379),9399,GOVERNMENT SERVICES-NOT ELSEWHERE CLASSIFIED,CHILDREN & YOUNG PEOPLE
REDACTED,3.25,10/11/2015,Amazon UK Marketplace,2 Nokia Lumia 635 Tempered Glass screens,5942,BOOK STORES,CHILDREN & YOUNG PEOPLE
REDACTED,31.6,10/11/2015,Amazon UK Marketplace,8 X Sandisk 8GB MicroSDHC Micro SD HC Memory Card,5942,BOOK STORES,PUBLIC PROTECTION
REDACTED,18.62,10/11/2015,WAITROSE 140,food and drink for sessions,5411,"GROCERY STORES, SUPERMARKETS",CHILDREN & YOUNG PEOPLE
REDACTED,100,10/11/2015,ASDA SUPERSTORE,086MM016/37 Food Vouchers,5411,"GROCERY STORES, SUPERMARKETS",CHILDREN & YOUNG PEOPLE
REDACTED,100,10/11/2015,ASDA SUPERSTORE,086SB054/2 Food Vouchers,5411,"GROCERY STORES, SUPERMARKETS",CHILDREN & YOUNG PEOPLE
REDACTED,23.4,10/11/2015,GRO HM PASSPORT OFFICE,Urgent Birth Cert. WC 1073075,9399,GOVERNMENT SERVICES-NOT ELSEWHERE CLASSIFIED,CHILDREN & YOUNG PEOPLE
REDACTED,70,10/11/2015,WWW.JA.NET,SSL Certs - hrws-eadidon.com & www.access-unlimite,8699,"ORGANIZATIONS, MEMBERSHIP-NOT ELSEWHERE CLASSIFIED",RESOURCE MANAGEMENT
REDACTED,50.75,10/11/2015,FILOFAX LETTS BLUELINE,JEPU paper diaries,5999,MISCELLANEOUS AND SPECIALTY RETAIL STORES,PUBLIC PROTECTION
REDACTED,100,10/11/2015,W M MORRISON PLC,086SB054/1 Food Vouchers,5411,"GROCERY STORES, SUPERMARKETS",CHILDREN & YOUNG PEOPLE
REDACTED,39.07,10/11/2015,BOOTS 1833,Raffle prizes for Children in Need event - XXXXX,5912,"DRUG STORES, PHARMACIES",RESOURCE MANAGEMENT
REDACTED,30.07,10/11/2015,Wordery,"Social work & foster carer book
why cant my child",5942,BOOK STORES,CHILDREN & YOUNG PEOPLE
REDACTED,32.8,10/11/2015,SAINSBURYS 0408,Leadership and management course catering,5411,"GROCERY STORES, SUPERMARKETS",FIRE
REDACTED,5,10/11/2015,HMCOURTS-SERVICE.G,Looked after Children - XXXXX,9222,FINES,CHILDREN & YOUNG PEOPLE
REDACTED,19.4,10/11/2015,VIRGINTRAINSEC SERVCS,"XXXXX, E'boro-Penrith. 10 Dec, LLW mtg",4112,PASSENGER RAILWAYS,ENVIRONMENT & TRANSPORT
REDACTED,45,10/11/2015,GIFT PEOPLE,Materials for groups: Xmas O-N2015 R7,5942,BOOK STORES,CHILDREN & YOUNG PEOPLE
REDACTED,95.9,10/11/2015,VIRGINTRAINSEC SERVCS,"XXXXX, E'boro-P'rith-L'don, CE TOG/NIA mtgs",4112,PASSENGER RAILWAYS,ENVIRONMENT & TRANSPORT
REDACTED,16.06,10/11/2015,ASDA  STORES 4218,"Snack for Stay & Play, Just Toddling, Twins groups",5411,"GROCERY STORES, SUPERMARKETS",CHILDREN & YOUNG PEOPLE
REDACTED,18.24,10/11/2015,TESCO STORES 4483,Snack items for groups,5411,"GROCERY STORES, SUPERMARKETS",CHILDREN & YOUNG PEOPLE
REDACTED,28.51,10/11/2015,ASDA HOME SHOPPING,Food for groups O-N2015 R6,5411,"GROCERY STORES, SUPERMARKETS",CHILDREN & YOUNG PEOPLE
REDACTED,58.38,10/11/2015,ASDA HOME SHOPPING,Food and drink for groups,5411,"GROCERY STORES, SUPERMARKETS",CHILDREN & YOUNG PEOPLE
REDACTED,52.95,10/11/2015,TRAVELODGE,BB for XXXXX,3615,TRAVELODGE,ADULT & COMMUNITY SERVICES
REDACTED,-0.17,10/11/2015,ASDA HOME SHOPPING,Refund re. food and drink for groups order,5411,"GROCERY STORES, SUPERMARKETS",CHILDREN & YOUNG PEOPLE
REDACTED,-1,10/11/2015,TRAVELODGE,Charge for using credit card to book BB,3615,TRAVELODGE,ADULT & COMMUNITY SERVICES
REDACTED,0.4,10/11/2015,ASDA HOME SHOPPING,Food for Groups O-N2015 R6,5411,"GROCERY STORES, SUPERMARKETS",CHILDREN & YOUNG PEOPLE
REDACTED,-33.33,10/11/2015,BOOHOO.COM,Looked After Children XXXXX clothing refund,5631,WOMEN'S ACCESSORY AND SPECIALTY STORES,ADULT & COMMUNITY SERVICES
REDACTED,137.5,11/11/2015,TURNERS(IPSWICH),FDS service,7538,AUTOMOTIVE SERVICE SHOPS,FIRE
REDACTED,30,11/11/2015,BOOK PEOPLE VOUCHER,Toddler books for Christmas Party Presents,5942,BOOK STORES,CHILDREN & YOUNG PEOPLE
REDACTED,9.88,11/11/2015,DENMANS ELECTRICAL IPS,box and glands for lights to multi-rig wattisham,5065,ELECTRICAL PARTS AND EQUIPMENT,FIRE
REDACTED,19.18,11/11/2015,123-REG.CO.UK,Registration for SRF website,4816,COMPUTER NETWORK/INFORMATION SERVICES,PUBLIC PROTECTION
REDACTED,20,11/11/2015,GIFT PEOPLE,Baby books for Christmas Party presents,5942,BOOK STORES,CHILDREN & YOUNG PEOPLE
REDACTED,37,11/11/2015,DSA THEORY TEST,Theory test booked by XXXXX,9399,GOVERNMENT SERVICES-NOT ELSEWHERE CLASSIFIED,FIRE
REDACTED,19.5,11/11/2015,PAYPAL  NATAIDSTRUS,Red ribbons for World Aids day on 1 December 2015,8398,"ORGANIZATIONS, CHARITABLE AND SOCIAL SERVICES",PUBLIC HEALTH
REDACTED,36.59,11/11/2015,EDMUNDSON ELECTRICAL,Materials for lowe/north projector and screen,5065,ELECTRICAL PARTS AND EQUIPMENT,FIRE
REDACTED,42.13,11/11/2015,TRAINLINE,Train ticket for XXXXX - London,4112,PASSENGER RAILWAYS,RESOURCE MANAGEMENT
REDACTED,6.35,11/11/2015,SP  SHERWOOD DIA,Offender Diary for XXXXX,5734,COMPUTER SOFTWARE STORES,CHILDREN & YOUNG PEOPLE
REDACTED,82.1,11/11/2015,GREATERANGLIA.CO.UK,meeting London 12/11 BIS,4112,PASSENGER RAILWAYS,PUBLIC PROTECTION
REDACTED,5.6,11/11/2015,GREGGS S2067,Food for groups O-N2015 R8,5462,BAKERIES,CHILDREN & YOUNG PEOPLE
REDACTED,67.29,11/11/2015,PREMIER INN44531685,XXXXX accom 8 Dec NIA mtg,3811,PREMIER INN,ENVIRONMENT & TRANSPORT
REDACTED,290.74,12/11/2015,BOOKERECOMM,Looked after Children - Provisions,5811,CATERERS,CHILDREN & YOUNG PEOPLE
REDACTED,16.67,12/11/2015,ARCO TOOL HIRE,Chain oil for chainsaws,5261,LAWN AND GARDEN SUPPLY STORES,PUBLIC PROTECTION
REDACTED,47.99,12/11/2015,ARCO LTD,Shoes XXXXX (cannot wear standard issue),5085,INDUSTRIAL SUPPLIES NOT ELSEWHERE CLASSIFIED,PUBLIC PROTECTION
REDACTED,18.94,12/11/2015,USCUSTOMS ESTA APPL PM,ESTA Forms x 2 - 086LS018/9,9399,GOVERNMENT SERVICES-NOT ELSEWHERE CLASSIFIED,CHILDREN & YOUNG PEOPLE
REDACTED,368.93,12/11/2015,ARGOS RETAIL GROUP,Wardrobes for XXXXX,5310,DISCOUNT STORES,CHILDREN & YOUNG PEOPLE
REDACTED,164.32,12/11/2015,ASDA HOME SHOPPING,Looked after children - Provisions,5411,"GROCERY STORES, SUPERMARKETS",CHILDREN & YOUNG PEOPLE
REDACTED,-23.4,12/11/2015,GRO HM PASSPORT OFFICE,Urgent Birth Cert. XXXXX 1073075 - REFUND,9399,GOVERNMENT SERVICES-NOT ELSEWHERE CLASSIFIED,CHILDREN & YOUNG PEOPLE
REDACTED,32.25,13/11/2015,Amazon UK Marketplace,3x Torches,5942,BOOK STORES,ENVIRONMENT & TRANSPORT
REDACTED,54,13/11/2015,"Amazon Svcs Europe,SAR",Split - (50%),5942,BOOK STORES,CHILDREN & YOUNG PEOPLE
REDACTED,54,13/11/2015,"Amazon Svcs Europe,SAR",Split - (50%),5942,BOOK STORES,CHILDREN & YOUNG PEOPLE
REDACTED,35.95,13/11/2015,B&M RETAIL LTD,Raffle prizes for Children in Need event - XXXXX,5310,DISCOUNT STORES,RESOURCE MANAGEMENT
REDACTED,4.4,13/11/2015,POST OFFICE COUNTER,Postage return to Intramark,9402,POSTAL SERVICES-GOVERNMENT ONLY,PUBLIC PROTECTION
REDACTED,202.5,13/11/2015,MSFT  <E01001I0HQ>,Microsoft Licence,4816,COMPUTER NETWORK/INFORMATION SERVICES,RESOURCE MANAGEMENT
REDACTED,10.82,13/11/2015,DUNELM LTD,equipment for centre (storage and electrical),5714,"DRAPERY, UPOLSTERY, AND WINDOW COVERINGS STORES",CHILDREN & YOUNG PEOPLE
REDACTED,47.52,13/11/2015,POST OFFICE COUNTER,postage stamps,9402,POSTAL SERVICES-GOVERNMENT ONLY,CHILDREN & YOUNG PEOPLE
REDACTED,21.56,13/11/2015,LABEEBY,Looked After Children Tunic for XXXXX,5651,FAMILY CLOTHING STORES,ADULT & COMMUNITY SERVICES
REDACTED,-10.65,13/11/2015,ASDA HOME SHOPPING,Looked after Children - Provisions,5411,"GROCERY STORES, SUPERMARKETS",CHILDREN & YOUNG PEOPLE
REDACTED,-9.25,13/11/2015,GRO HM PASSPORT OFFICE,Birth cert x1 refund XXXXX 086GS118/1,9399,GOVERNMENT SERVICES-NOT ELSEWHERE CLASSIFIED,CHILDREN & YOUNG PEOPLE
REDACTED,7.48,16/11/2015,STAPLES UK,Stationery supplies for XXXXX  (2016 diary etc.),5943,"OFFICE, SCHOOL SUPPLY, AND STATIONERY STORES",FIRE
REDACTED,3.58,16/11/2015,FASTHOSTS INTERNET,Invest in Suffolk Website,4816,COMPUTER NETWORK/INFORMATION SERVICES,ENVIRONMENT & TRANSPORT
REDACTED,66,16/11/2015,GREATERANGLIA.CO.UK,XXXXX travel to London Pension Mtg,4112,PASSENGER RAILWAYS,RESOURCE MANAGEMENT
REDACTED,8.13,16/11/2015,Amazon UK Marketplace,5 Nokia Lumia 635 cases,5942,BOOK STORES,CHILDREN & YOUNG PEOPLE
REDACTED,56.21,16/11/2015,IBIS LONDON WEMBLEY,"XXXXX, accom, RWM mtg 19 Nov",7011,"LODGING-HOTELS,MOTELS,RESORTS-NOT CLASSIFIED",ENVIRONMENT & TRANSPORT
REDACTED,5,16/11/2015,GOV.UK/DART-CHARGE,"CCN Conf, 2 x Dartford Crossing, XXXXX",4784,"BRIDGE AND ROAD FEES, TOLLS",CHIEF EXECS
REDACTED,79.5,16/11/2015,M&S E COMMERCE,Buffet lunch for 30. Opening of BSE Community Stn,5411,"GROCERY STORES, SUPERMARKETS",FIRE
REDACTED,-9.25,16/11/2015,GRO HM PASSPORT OFFICE,"URGENT COPY OF BIRTH CERTIFICATE(43232,REFUNDED)",9399,GOVERNMENT SERVICES-NOT ELSEWHERE CLASSIFIED,RESOURCE MANAGEMENT
REDACTED,8.13,17/11/2015,Amazon UK Marketplace,5 protective flip cases for workers mobile phones,5942,BOOK STORES,CHILDREN & YOUNG PEOPLE
REDACTED,3.25,17/11/2015,Amazon UK Marketplace,2 Nokia Lumia 635 cases,5942,BOOK STORES,CHILDREN & YOUNG PEOPLE
REDACTED,32.05,17/11/2015,WAITROSE 140,food and drink for centre,5411,"GROCERY STORES, SUPERMARKETS",CHILDREN & YOUNG PEOPLE
REDACTED,66,17/11/2015,GREATERANGLIA.CO.UK,XXXXX travel to London for Pension mtg,4112,PASSENGER RAILWAYS,RESOURCE MANAGEMENT
REDACTED,89,17/11/2015,WWW.ACRO.POLICE.UK,Urgent police checks for Visa XXXXX 109447,9399,GOVERNMENT SERVICES-NOT ELSEWHERE CLASSIFIED,CHILDREN & YOUNG PEOPLE
REDACTED,4.75,17/11/2015,WATER LANE LEISURE CEN,Looked after Children - Activity XXXXX,7999,RECREATION SERVICES (NOT ELSEWHERE CLASSIFIED),CHILDREN & YOUNG PEOPLE
REDACTED,238.8,17/11/2015,WWW.LOCAL.GOV.UK,Cllr XXXXX attendance at Local Gov Finance Conf,7399,BUSINESS SERVICES-NOT ELSEWHERE CLASSIFIED,RESOURCE MANAGEMENT
REDACTED,59,17/11/2015,VIRGINTRAINSEC SERVCS,XXXXX H'worth-London 28 Jan SG mtg,4112,PASSENGER RAILWAYS,ENVIRONMENT & TRANSPORT
REDACTED,6.34,17/11/2015,ASDA  STORES 4218,"Snack for stay & Play,Just Toddling,Twins Groups",5411,"GROCERY STORES, SUPERMARKETS",CHILDREN & YOUNG PEOPLE
REDACTED,86,17/11/2015,BYTEMARK HOSTING,cyp hosting,5734,COMPUTER SOFTWARE STORES,RESOURCE MANAGEMENT
REDACTED,91.5,18/11/2015,THE PALACE HOTEL,Conference H&S Labs workshops attendance,7011,"LODGING-HOTELS,MOTELS,RESORTS-NOT CLASSIFIED",FIRE
REDACTED,40,18/11/2015,WWW.THEWORKS.CO.UK,"LOOKED AFTER CHILDREN
CHRISTMAS GIFTS - BOOKS",5942,BOOK STORES,CHILDREN & YOUNG PEOPLE
REDACTED,44.8,18/11/2015,IVY HOUSE COUNTRY HOTE,HR business meeting,7011,"LODGING-HOTELS,MOTELS,RESORTS-NOT CLASSIFIED",FIRE
REDACTED,4.98,18/11/2015,Amazon UK Marketplace,Christmas materials for sessions,5942,BOOK STORES,CHILDREN & YOUNG PEOPLE
REDACTED,2.5,18/11/2015,Amazon UK Marketplace,Christmas materials for sessions,5942,BOOK STORES,CHILDREN & YOUNG PEOPLE
REDACTED,22.95,18/11/2015,THE BOOK PEOPLE,books for centre,5942,BOOK STORES,CHILDREN & YOUNG PEOPLE
REDACTED,45.94,18/11/2015,Amazon UK Marketplace,Kids Card Order for XXXXX,5942,BOOK STORES,CHILDREN & YOUNG PEOPLE
REDACTED,135.15,18/11/2015,THE THERAPLAY INSTITU,Midterm S'vision for XXXXX Theraplay Institut,8398,"ORGANIZATIONS, CHARITABLE AND SOCIAL SERVICES",CHILDREN & YOUNG PEOPLE
REDACTED,24.55,18/11/2015,SAINSBURYS 0408,Leadership and management course catering,5411,"GROCERY STORES, SUPERMARKETS",FIRE
REDACTED,45.36,18/11/2015,EUROFFICE.CO.UK,Front labels for Application Files,5943,"OFFICE, SCHOOL SUPPLY, AND STATIONERY STORES",RESOURCE MANAGEMENT
REDACTED,5.1,18/11/2015,SL-NCP-ADAPTIS ECOM GA,Parking for NTS meeting London,7523,AUTOMOBILE PARKING LOTS AND GARAGES,PUBLIC PROTECTION
REDACTED,43.48,18/11/2015,ASDA HOME SHOPPING,Food for groups N-D2015 R1,5411,"GROCERY STORES, SUPERMARKETS",CHILDREN & YOUNG PEOPLE
REDACTED,0.15,18/11/2015,ASDA HOME SHOPPING,Food for groups N-D2015 R1,5411,"GROCERY STORES, SUPERMARKETS",CHILDREN & YOUNG PEOPLE
REDACTED,220.83,18/11/2015,PREMIER INN44521755,"Overnight Stay, Cabinet Members, Media Training",3811,PREMIER INN,RESOURCE MANAGEMENT
REDACTED,249.17,18/11/2015,PREMIER INN44521755,"Overnight stay, Cabinet Members, Media Training",3811,PREMIER INN,RESOURCE MANAGEMENT
REDACTED,15.2,19/11/2015,WAGAMAMA,Dinner - meeting with RWM and DECC,5812,"EATING PLACES, RESTAURANTS",ENVIRONMENT & TRANSPORT
REDACTED,357.66,19/11/2015,"ISAACS,BRIARBANK& GARD",CMT Session on 11 December 2015,5812,"EATING PLACES, RESTAURANTS",RESOURCE MANAGEMENT
REDACTED,39.92,19/11/2015,THE BOOK PEOPLE,books for centre,5942,BOOK STORES,CHILDREN & YOUNG PEOPLE
REDACTED,46,19/11/2015,IPS PETERBOROUGH CONTA,Passport for XXXXX,9399,GOVERNMENT SERVICES-NOT ELSEWHERE CLASSIFIED,CHILDREN & YOUNG PEOPLE
REDACTED,27.7,19/11/2015,B&Q,Paint for way marking posts and signs.,5211,"BUILDING MATERIALS, LUMBER STORES",PUBLIC PROTECTION
REDACTED,10.78,19/11/2015,TOOLSTATION LTD,Primer for Framlingham store doors,5251,HARDWARE STORES,FIRE
REDACTED,1.28,19/11/2015,Amazon UK Marketplace,Wall stickers comments board,5942,BOOK STORES,CHILDREN & YOUNG PEOPLE
REDACTED,9.66,19/11/2015,SCREWFIX DIRECT LT,unibond metal repair paste,5211,"BUILDING MATERIALS, LUMBER STORES",FIRE
REDACTED,141.6,19/11/2015,BIGDUG LIMITED,Workbench for WTC,5072,HARDWARE EQUIPMENT AND SUPPLIES,FIRE
REDACTED,4.32,19/11/2015,DENMANS ELECTRICAL IPS,Adaptable box for charging lead Low South,5065,ELECTRICAL PARTS AND EQUIPMENT,FIRE
REDACTED,6.87,19/11/2015,Amazon UK Marketplace,Pa system extension cable for watch office,5942,BOOK STORES,FIRE
REDACTED,66,19/11/2015,GREATERANGLIA.CO.UK,XXXXX London Mtg,4112,PASSENGER RAILWAYS,RESOURCE MANAGEMENT
REDACTED,81.92,19/11/2015,UKOFFICEDIRECT.CO.,Duplicate books for nurse prescribing,5943,"OFFICE, SCHOOL SUPPLY, AND STATIONERY STORES",CHILDREN & YOUNG PEOPLE
REDACTED,8.25,19/11/2015,TRAVIS PERKINS,Mortar for step and brickwork repairs,5211,"BUILDING MATERIALS, LUMBER STORES",PUBLIC PROTECTION
REDACTED,20,19/11/2015,SUFFOLK COUNTY COUNCIL,need copy of Passport XXXXX (227229),9399,GOVERNMENT SERVICES-NOT ELSEWHERE CLASSIFIED,CHILDREN & YOUNG PEOPLE
REDACTED,148.6,19/11/2015,MAGNET LTD,New front door and furniture Beccles,5712,"EQUIP, FURNITURE, HOME FURNSHNGS STRS (EXCPT APPL)",FIRE
REDACTED,18.5,19/11/2015,GRO HM PASSPORT OFFICE,2x birth cert. XXXXX 086GS013/17,9399,GOVERNMENT SERVICES-NOT ELSEWHERE CLASSIFIED,CHILDREN & YOUNG PEOPLE
REDACTED,59.54,19/11/2015,EASTERN HOSE & HYDRAUL,New pressure washer hose princess street,5085,INDUSTRIAL SUPPLIES NOT ELSEWHERE CLASSIFIED,FIRE
REDACTED,5.2,19/11/2015,SHARMAN CARAVANS,appliance inlet for ladder 3 lowe/south charging,5561,"CAMPER DEALERS, RECREATIONAL AND UTILITY TRAILERS",FIRE
REDACTED,174.52,19/11/2015,WWW.ICELAND.CO.UK,Looked after Children - Provisions,5411,"GROCERY STORES, SUPERMARKETS",CHILDREN & YOUNG PEOPLE
REDACTED,18.5,19/11/2015,MSFT  <E03001IYLC>,Subscription for Intune Licenses,4816,COMPUTER NETWORK/INFORMATION SERVICES,RESOURCE MANAGEMENT
REDACTED,20.98,20/11/2015,Amazon UK Marketplace,Presentation pointer for XXXXX,5942,BOOK STORES,FIRE
REDACTED,36.72,20/11/2015,Amazon EU,LOOKED AFTER CHILDREN Xmas presents Books,5969,DIRECT MARKETING-OTHER DIRECT MARKETERS/NOT ELSEW.,CHILDREN & YOUNG PEOPLE
REDACTED,130,20/11/2015,WESTMINSTER HOTEL,Accommodation for XXXXX,7011,"LODGING-HOTELS,MOTELS,RESORTS-NOT CLASSIFIED",FIRE
REDACTED,130,20/11/2015,WESTMINSTER HOTEL,Accommodation for XXXXX,7011,"LODGING-HOTELS,MOTELS,RESORTS-NOT CLASSIFIED",FIRE
REDACTED,7.66,20/11/2015,PRET A MANGER,Lunch - meeting with RWM and DECC,5812,"EATING PLACES, RESTAURANTS",ENVIRONMENT & TRANSPORT
REDACTED,11,20/11/2015,B & Q,stars project,5211,"BUILDING MATERIALS, LUMBER STORES",ENVIRONMENT & TRANSPORT
REDACTED,16,20/11/2015,B & Q,1000 Suffolk stars project,5211,"BUILDING MATERIALS, LUMBER STORES",ENVIRONMENT & TRANSPORT
REDACTED,7.71,20/11/2015,Amazon UK Marketplace,Phone cases for staff VAT no. 176524980,5942,BOOK STORES,CHILDREN & YOUNG PEOPLE
REDACTED,15.96,20/11/2015,Amazon UK Marketplace,Phone Cases for staff. VAT no. 176524980,5942,BOOK STORES,CHILDREN & YOUNG PEOPLE
REDACTED,80.2,20/11/2015,THE ABBEY HOTEL GOLF &,Conference costs - reclaim from EDF Energy,7011,"LODGING-HOTELS,MOTELS,RESORTS-NOT CLASSIFIED",PUBLIC PROTECTION
REDACTED,30.55,20/11/2015,ASDA HOME SHOPPING,Food Order for B2M w/c 16/11/15,5411,"GROCERY STORES, SUPERMARKETS",CHILDREN & YOUNG PEOPLE
REDACTED,0.55,20/11/2015,ASDA HOME SHOPPING,Food Order for B2M w/c 16/11/15,5411,"GROCERY STORES, SUPERMARKETS",CHILDREN & YOUNG PEOPLE
REDACTED,182.37,20/11/2015,WF SENATE IPSWICH,Trunking and fittings for wiring up projectors,5065,ELECTRICAL PARTS AND EQUIPMENT,FIRE
REDACTED,56.46,20/11/2015,PREMIER INN44521375,Accommodation bookings for Social Worker XXXXX,3811,PREMIER INN,CHILDREN & YOUNG PEOPLE
REDACTED,616.53,20/11/2015,MSFT  <E07001K9ZR>,F0592800/WR6403 Additional O365 licences in Lab,4816,COMPUTER NETWORK/INFORMATION SERVICES,RESOURCE MANAGEMENT
REDACTED,98.69,20/11/2015,HOTEL BLOOM-FIDELIO,Prosafe meeting Brussels,7011,"LODGING-HOTELS,MOTELS,RESORTS-NOT CLASSIFIED",PUBLIC PROTECTION
REDACTED,8.32,23/11/2015,Amazon UK Marketplace,Wall sticker art for Feedback/Comment Tree,5942,BOOK STORES,CHILDREN & YOUNG PEOPLE
REDACTED,3.32,23/11/2015,Amazon UK Marketplace,Wall sticker art for Feedback/Comment Tree,5942,BOOK STORES,CHILDREN & YOUNG PEOPLE
REDACTED,11.66,23/11/2015,"Amazon Svcs Europe,SAR",Wall sticker art for Feedback/Comment Tree,5942,BOOK STORES,CHILDREN & YOUNG PEOPLE
REDACTED,45.2,23/11/2015,GREATERANGLIA.CO.UK,2 Tickets to Bury St Edmunds for a meeting at West Suffolk House.,4112,PASSENGER RAILWAYS,RESOURCE MANAGEMENT
REDACTED,78.75,23/11/2015,PREMIER INN44521755,Hotel XXXXX Cabinet Media Training Elstree,3811,PREMIER INN,CHIEF EXECS
REDACTED,5.1,23/11/2015,SL-NCP-ADAPTIS ECOM GA,NTS Board meeting London - car parking,7523,AUTOMOBILE PARKING LOTS AND GARAGES,PUBLIC PROTECTION
REDACTED,80.74,23/11/2015,ARGOS RETAIL GROUP,Car seats for contacts within Centre,5310,DISCOUNT STORES,CHILDREN & YOUNG PEOPLE
REDACTED,203.35,23/11/2015,ARGOS RETAIL GROUP,Furniture and Equipment grant - XXXXX.,5310,DISCOUNT STORES,ADULT & COMMUNITY SERVICES
REDACTED,758.93,23/11/2015,ARGOS RETAIL GROUP,Furniture and Equipment grant - XXXXX.,5310,DISCOUNT STORES,ADULT & COMMUNITY SERVICES
REDACTED,158.94,23/11/2015,ARGOS RETAIL GROUP,Furniture and Equipment grant - XXXXX.,5310,DISCOUNT STORES,ADULT & COMMUNITY SERVICES
REDACTED,3.25,24/11/2015,Amazon UK Marketplace,1 Microsoft Lumia 640 screen & Leather wallet,5942,BOOK STORES,CHILDREN & YOUNG PEOPLE
REDACTED,32.61,24/11/2015,WAITROSE 140,food and drink for centre,5411,"GROCERY STORES, SUPERMARKETS",CHILDREN & YOUNG PEOPLE
REDACTED,8.89,24/11/2015,PAYPAL  GOOGLE PLAY,Error - to be refunded (HSBC 21034383 40-20-33),5999,MISCELLANEOUS AND SPECIALTY RETAIL STORES,ENVIRONMENT & TRANSPORT
REDACTED,1764,24/11/2015,THE SORREL HORSE,Approved to Ride course accommodation,5812,"EATING PLACES, RESTAURANTS",FIRE
REDACTED,215.83,24/11/2015,TURNERS(IPSWICH),service FDS CAR EJ64 UWU,7538,AUTOMOTIVE SERVICE SHOPS,FIRE
REDACTED,20.13,24/11/2015,ASDA  STORES 4218,"Snack for Stay & play, Just toddling, twins,",5411,"GROCERY STORES, SUPERMARKETS",CHILDREN & YOUNG PEOPLE
REDACTED,16.95,24/11/2015,GOOGLE  Google Play,L and D Google Play Development Registration Fee,7399,BUSINESS SERVICES-NOT ELSEWHERE CLASSIFIED,RESOURCE MANAGEMENT
REDACTED,53.82,24/11/2015,RIDGEONS,Extension Reels,5211,"BUILDING MATERIALS, LUMBER STORES",FIRE
REDACTED,11.62,24/11/2015,TESCO STORES 4483,Snack items for sessions,5411,"GROCERY STORES, SUPERMARKETS",CHILDREN & YOUNG PEOPLE
REDACTED,562.3,24/11/2015,WWW.FIRSTFENCE.NET,XXXXX fencing for Bury group,5211,"BUILDING MATERIALS, LUMBER STORES",FIRE
REDACTED,28.41,24/11/2015,ASDA HOME SHOPPING,Food for groups N-D2015 R2,5411,"GROCERY STORES, SUPERMARKETS",CHILDREN & YOUNG PEOPLE
REDACTED,34.16,24/11/2015,ASDA HOME SHOPPING,Food and drink for groups.,5411,"GROCERY STORES, SUPERMARKETS",CHILDREN & YOUNG PEOPLE
REDACTED,-0.85,24/11/2015,ASDA HOME SHOPPING,"Food and drink for groups, refund",5411,"GROCERY STORES, SUPERMARKETS",CHILDREN & YOUNG PEOPLE
REDACTED,0.4,24/11/2015,ASDA HOME SHOPPING,Food for groups N-D2015 R2,5411,"GROCERY STORES, SUPERMARKETS",CHILDREN & YOUNG PEOPLE
REDACTED,4.36,24/11/2015,MSFT  <E08001LQMU>,Sub Multi-Factor Authentication Pay as you Go,4816,COMPUTER NETWORK/INFORMATION SERVICES,RESOURCE MANAGEMENT
REDACTED,299,24/11/2015,SURVEYMONKEY.COM,Survey monkey subscription,4816,COMPUTER NETWORK/INFORMATION SERVICES,RESOURCE MANAGEMENT
REDACTED,83.4,24/11/2015,SITEGROUND.COM,Yearly subscription for Invest in Suffolk website,4816,COMPUTER NETWORK/INFORMATION SERVICES,ENVIRONMENT & TRANSPORT
REDACTED,32.06,25/11/2015,BEEFEATER40011905,Evening Meal x2 FI Course,5812,"EATING PLACES, RESTAURANTS",FIRE
REDACTED,19,25/11/2015,WWW.NORFOLK.GOV.UK,urgent copy of birth certificate re 42593,9399,GOVERNMENT SERVICES-NOT ELSEWHERE CLASSIFIED,RESOURCE MANAGEMENT
REDACTED,75.2,25/11/2015,VIRGINTRAINSEC SERVCS,XXXXX E'boro-M'chester 15 Dec LLW mtg,4112,PASSENGER RAILWAYS,ENVIRONMENT & TRANSPORT
REDACTED,27.75,25/11/2015,GRO HM PASSPORT OFFICE,"Request for XXXXX, XXXXX & XXXXX birth certs 086CR040",9399,GOVERNMENT SERVICES-NOT ELSEWHERE CLASSIFIED,CHILDREN & YOUNG PEOPLE
REDACTED,109.05,25/11/2015,Flybe2674 2674068046461,Flight Travel from Defra Conference in Exeter,4511,"AIR CARRIERS, AIRLINES-NOT ELSEWHERE CLASSIFIED",PUBLIC HEALTH
REDACTED,75.55,25/11/2015,Flybe2674 2674068046263,Flight Travel to Defra Conference in Exeter,4511,"AIR CARRIERS, AIRLINES-NOT ELSEWHERE CLASSIFIED",PUBLIC HEALTH
REDACTED,40.7,25/11/2015,VIRGINTRAINSEC SERVCS, E'boro-London 8 Dec NIA mtg,4112,PASSENGER RAILWAYS,ENVIRONMENT & TRANSPORT
REDACTED,11.7,25/11/2015,EDMUNDSON ELECTRICAL,sockets for projector project,5065,ELECTRICAL PARTS AND EQUIPMENT,FIRE
REDACTED,145.5,25/11/2015,TV LICENSING,TV Licence Lowestoft South,7392,"CONSULTING, MANAGEMENT, AND PUBLIC RELATIONS SVCS",FIRE
REDACTED,5.1,26/11/2015,SL-NCP-ADAPTIS ECOM GA,Stowmarket Rail Car parking,7523,AUTOMOBILE PARKING LOTS AND GARAGES,PUBLIC PROTECTION
REDACTED,26.86,26/11/2015,ASDA SUPERSTORE,Cleaning product and toilet rolls,5411,"GROCERY STORES, SUPERMARKETS",FIRE
REDACTED,83.33,26/11/2015,WWW.THERANGE.CO.UK,"Christmas tree and decorations, children's centre",5311,DEPARTMENT STORES,CHILDREN & YOUNG PEOPLE
REDACTED,16,26/11/2015,B & Q,1000 Suffolk stars project,5211,"BUILDING MATERIALS, LUMBER STORES",ENVIRONMENT & TRANSPORT
REDACTED,13.49,26/11/2015,ARGOS RETAIL GROUP,Rain cover for family,5310,DISCOUNT STORES,CHILDREN & YOUNG PEOPLE
REDACTED,28.5,26/11/2015,BTO SERVICES LTD,BTO Class C Restricted Ringing Licence,8398,"ORGANIZATIONS, CHARITABLE AND SOCIAL SERVICES",ENVIRONMENT & TRANSPORT
REDACTED,104.1,26/11/2015,THE KING'S HEAD HO,Overnight Accommodation for Introductions,7011,"LODGING-HOTELS,MOTELS,RESORTS-NOT CLASSIFIED",CHILDREN & YOUNG PEOPLE
REDACTED,8.97,26/11/2015,"Amazon Svcs Europe,SAR",Muslim prayer mat,5942,BOOK STORES,CHILDREN & YOUNG PEOPLE
REDACTED,5,26/11/2015,GOV.UK/DART-CHARGE,For planned trip to Dover port,4784,"BRIDGE AND ROAD FEES, TOLLS",PUBLIC PROTECTION
REDACTED,81.48,26/11/2015,2936 SGTS MESS,Hospitality for Pre Retirement course,5811,CATERERS,FIRE
REDACTED,56.34,26/11/2015,B & Q,Materials for door at Beccles,5211,"BUILDING MATERIALS, LUMBER STORES",FIRE
REDACTED,171.41,26/11/2015,ASDA HOME SHOPPING,Looked after Children - Provisions,5411,"GROCERY STORES, SUPERMARKETS",CHILDREN & YOUNG PEOPLE
REDACTED,1.29,26/11/2015,ASDA HOME SHOPPING,Looked after Children - Provisions,5411,"GROCERY STORES, SUPERMARKETS",CHILDREN & YOUNG PEOPLE
REDACTED,225.5,26/11/2015,PREMIER INN 44011910,Fire Investigation Course - accommodation X2,3811,PREMIER INN,FIRE
REDACTED,65.12,26/11/2015,IBIS MANCHESTER CHARLE,"XXXXX, accom, LLW mtg, 16 Dec",7011,"LODGING-HOTELS,MOTELS,RESORTS-NOT CLASSIFIED",ENVIRONMENT & TRANSPORT
REDACTED,108.75,26/11/2015,PREMIER INN44534620,Hotel - Whole team approach to obesity conference,3811,PREMIER INN,PUBLIC HEALTH
REDACTED,-40,26/11/2015,WWW.THEWORKS.CO.UK,LOOKED AFTER CHILDREN Xmas books,5942,BOOK STORES,CHILDREN & YOUNG PEOPLE
REDACTED,15.57,27/11/2015,Amazon UK Marketplace,hula hoops for children's centre,5942,BOOK STORES,CHILDREN & YOUNG PEOPLE
REDACTED,20.52,27/11/2015,ELECTRIC CENTRE,plugs and sockets for IT rewires,5065,ELECTRICAL PARTS AND EQUIPMENT,FIRE
REDACTED,28.49,27/11/2015,Amazon EU,3 x Qur'ans for UASC,5969,DIRECT MARKETING-OTHER DIRECT MARKETERS/NOT ELSEW.,CHILDREN & YOUNG PEOPLE
REDACTED,29.5,27/11/2015,GREATERANGLIA.CO.UK,XXXXX Pension London mtg,4112,PASSENGER RAILWAYS,RESOURCE MANAGEMENT
REDACTED,39.26,27/11/2015,ASDA HOME SHOPPING,B2M Food Order 23 Nov 15,5411,"GROCERY STORES, SUPERMARKETS",CHILDREN & YOUNG PEOPLE
REDACTED,-3.08,27/11/2015,ASDA HOME SHOPPING,Reimbursement from Asda - food not available,5411,"GROCERY STORES, SUPERMARKETS",CHILDREN & YOUNG PEOPLE
REDACTED,198.12,27/11/2015,MDS HIRE  COPYRIGHT,Sheet Music for Suffolk Youth Orchestra 2015/16,7372,"COMP PROGRAMING,DATA PRCSNG,INTGRTD SYS DSGN SRVS",CHILDREN & YOUNG PEOPLE
REDACTED,25,30/11/2015,Amazon EU,25 gift card for Raising the Bar winner,5969,DIRECT MARKETING-OTHER DIRECT MARKETERS/NOT ELSEW.,CHILDREN & YOUNG PEOPLE
REDACTED,1.79,30/11/2015,FASTHOSTS INTERNET,Invest in Suffolk Website,4816,COMPUTER NETWORK/INFORMATION SERVICES,ENVIRONMENT & TRANSPORT
REDACTED,65,30/11/2015,EB FOOD GLORIOUS FOOD,Attendance at CIWM Conference on 4 December 2015,7399,BUSINESS SERVICES-NOT ELSEWHERE CLASSIFIED,PUBLIC HEALTH
REDACTED,7.18,30/11/2015,Amazon EU,Filofax A4 Year Planner for  XXXXX,5969,DIRECT MARKETING-OTHER DIRECT MARKETERS/NOT ELSEW.,PUBLIC PROTECTION
REDACTED,60,30/11/2015,VIR ATL,Additional Baggage re above - 086GS018/17,3144,VIRGIN ATLANTIC,CHILDREN & YOUNG PEOPLE
REDACTED,21.95,30/11/2015,ASDA 4387,LOOKED AFTER CHILDREN Pyjamas,5411,"GROCERY STORES, SUPERMARKETS",CHILDREN & YOUNG PEOPLE
REDACTED,42.95,30/11/2015,TESCO CLOTHING UK,LOOKED AFTER CHILDREN Pyjamas,5651,FAMILY CLOTHING STORES,CHILDREN & YOUNG PEOPLE
REDACTED,17.56,30/11/2015,FASTHOSTS INTERNET,Invest in Suffolk website,4816,COMPUTER NETWORK/INFORMATION SERVICES,ENVIRONMENT & TRANSPORT
REDACTED,1294.09,30/11/2015,VIR ATL21 2166649734,Flights to USA - 086GS018/17,3144,VIRGIN ATLANTIC,CHILDREN & YOUNG PEOPLE
REDACTED,29.82,30/11/2015,TOOLSTATION LTD,Pump pliers,5251,HARDWARE STORES,FIRE
REDACTED,475.98,30/11/2015,GODADDY COM EUROPE,SSL Certificate Renewal,4816,COMPUTER NETWORK/INFORMATION SERVICES,FIRE
REDACTED,27.98,30/11/2015,B&Q,sealant and gun for Multi-rig lighting training,5211,"BUILDING MATERIALS, LUMBER STORES",FIRE
REDACTED,5.13,30/11/2015,ASDA  STORES 4218,Refreshments for mangers meeting (centres future),5411,"GROCERY STORES, SUPERMARKETS",CHILDREN & YOUNG PEOPLE
REDACTED,55.25,30/11/2015,KENT BLAXILL AND C,Glass for FIDU,5211,"BUILDING MATERIALS, LUMBER STORES",FIRE
REDACTED,17.8,30/11/2015,GREATER ANGLIA,"XXXXX H'worth-Ipswich, IT repairs",4112,PASSENGER RAILWAYS,ENVIRONMENT & TRANSPORT
REDACTED,67.48,30/11/2015,LEGO,LOOKED AFTER CHILDREN Xmas presents,5945,"GAME, TOY, AND HOBBY SHOPS",CHILDREN & YOUNG PEOPLE
REDACTED,59.12,30/11/2015,IBIS BIRMINGHAM BORDES,"Overnight Accom for XXXXX, ADSO Conf 2015",7011,"LODGING-HOTELS,MOTELS,RESORTS-NOT CLASSIFIED",CHIEF EXECS
REDACTED,15.45,01/12/2015,SAINSBURYS 0411,food and drink for centre,5411,"GROCERY STORES, SUPERMARKETS",CHILDREN & YOUNG PEOPLE
REDACTED,18,01/12/2015,EA HAZARDOUS WASTE-DOM,LEISTON REG REF: OAB311,9399,GOVERNMENT SERVICES-NOT ELSEWHERE CLASSIFIED,FIRE
REDACTED,18,01/12/2015,EA HAZARDOUS WASTE-DOM,ALDEBURGH REG REF: OAB279,9399,GOVERNMENT SERVICES-NOT ELSEWHERE CLASSIFIED,FIRE
REDACTED,18,01/12/2015,EA HAZARDOUS WASTE-DOM,ORFORD REG REF: OAB267,9399,GOVERNMENT SERVICES-NOT ELSEWHERE CLASSIFIED,FIRE
REDACTED,18,01/12/2015,EA HAZARDOUS WASTE-DOM,WOODBRIDGE REG REF: OAB214,9399,GOVERNMENT SERVICES-NOT ELSEWHERE CLASSIFIED,FIRE
REDACTED,18,01/12/2015,EA HAZARDOUS WASTE-DOM,FRAMLINGHAM REG REF:OAB254,9399,GOVERNMENT SERVICES-NOT ELSEWHERE CLASSIFIED,FIRE
REDACTED,18,01/12/2015,EA HAZARDOUS WASTE-DOM,HOLBROOK REG REF: OAB247,9399,GOVERNMENT SERVICES-NOT ELSEWHERE CLASSIFIED,FIRE
REDACTED,18,01/12/2015,EA HAZARDOUS WASTE-DOM,PRINCES STREET - REG REF: OAB239,9399,GOVERNMENT SERVICES-NOT ELSEWHERE CLASSIFIED,FIRE
REDACTED,24.09,01/12/2015,RAILEASY WEB SITE,Split - XXXXX train fare (50%),4112,PASSENGER RAILWAYS,CHILDREN & YOUNG PEOPLE
REDACTED,24.08,01/12/2015,RAILEASY WEB SITE,Split - XXXXX train fare (50%),4112,PASSENGER RAILWAYS,CHILDREN & YOUNG PEOPLE
REDACTED,10.99,01/12/2015,Amazon UK Marketplace,Filofax A4 Appointments Diary for XXXXX,5942,BOOK STORES,PUBLIC PROTECTION
REDACTED,59.94,01/12/2015,THE BOOK PEOPLE,Books for Christmas gifts for Santa in sessions,5942,BOOK STORES,CHILDREN & YOUNG PEOPLE
REDACTED,65.2,01/12/2015,THE BOOK PEOPLE,Books purchased for Christmas events.,5942,BOOK STORES,CHILDREN & YOUNG PEOPLE
REDACTED,59.94,01/12/2015,THE BOOK PEOPLE,Books  to give as xmas presents to the children .,5942,BOOK STORES,CHILDREN & YOUNG PEOPLE
REDACTED,53.3,01/12/2015,VIRGINTRAINSEC SERVCS,XXXXX E'boro-Manchester 13-14 Jan NDA mtg,4112,PASSENGER RAILWAYS,ENVIRONMENT & TRANSPORT
REDACTED,50,01/12/2015,BURY ST EDMUNDS,Gardening voucher schools award,5261,LAWN AND GARDEN SUPPLY STORES,ENVIRONMENT & TRANSPORT
REDACTED,51.56,01/12/2015,B & Q,Lock and paint for door Beccles,5211,"BUILDING MATERIALS, LUMBER STORES",FIRE
REDACTED,20,01/12/2015,OYSTER RENEW WEB,XXXXX Oystercard top-up,4112,PASSENGER RAILWAYS,ENVIRONMENT & TRANSPORT
REDACTED,79,02/12/2015,IBIS BIRMINGHAM NEW ST,NAAONB training_CS,7011,"LODGING-HOTELS,MOTELS,RESORTS-NOT CLASSIFIED",ENVIRONMENT & TRANSPORT
REDACTED,10.9,02/12/2015,THE JAPANESE CANTEEN,Dinner - Radioactive Waste Planning Group,5812,"EATING PLACES, RESTAURANTS",ENVIRONMENT & TRANSPORT
REDACTED,10.75,02/12/2015,Amazon UK Marketplace,LOOKED AFTER CHILDREN Xmas present,5942,BOOK STORES,CHILDREN & YOUNG PEOPLE
REDACTED,41.64,02/12/2015,Amazon EU,LOOKED AFTER CHILDREN Xmas present Lego,5969,DIRECT MARKETING-OTHER DIRECT MARKETERS/NOT ELSEW.,CHILDREN & YOUNG PEOPLE
REDACTED,20,02/12/2015,WWW.THEWORKS.CO.UK,Books for Children's centre Xmas party,5942,BOOK STORES,CHILDREN & YOUNG PEOPLE
REDACTED,76.7,02/12/2015,GREATERANGLIA.CO.UK,XXXXXX DCLG Mtg London,4112,PASSENGER RAILWAYS,RESOURCE MANAGEMENT
REDACTED,18,02/12/2015,EA HAZARDOUS WASTE-DOM,BECCLES REG REF: OAB504,9399,GOVERNMENT SERVICES-NOT ELSEWHERE CLASSIFIED,FIRE
REDACTED,18,02/12/2015,EA HAZARDOUS WASTE-DOM,SAXMUNDHAM REG REF: OAB320,9399,GOVERNMENT SERVICES-NOT ELSEWHERE CLASSIFIED,FIRE
REDACTED,18,02/12/2015,EA HAZARDOUS WASTE-DOM,REYDON REG REF: ONB955,9399,GOVERNMENT SERVICES-NOT ELSEWHERE CLASSIFIED,FIRE
REDACTED,18,02/12/2015,EA HAZARDOUS WASTE-DOM,STRADBROK REG REF: OAB512,9399,GOVERNMENT SERVICES-NOT ELSEWHERE CLASSIFIED,FIRE
REDACTED,18,02/12/2015,EA HAZARDOUS WASTE-DOM,EYE REG REF: OAB728,9399,GOVERNMENT SERVICES-NOT ELSEWHERE CLASSIFIED,FIRE
REDACTED,18,02/12/2015,EA HAZARDOUS WASTE-DOM,DEBENHAM REG REF: OAB729,9399,GOVERNMENT SERVICES-NOT ELSEWHERE CLASSIFIED,FIRE
REDACTED,18,02/12/2015,EA HAZARDOUS WASTE-DOM,CLARE  REG REF:522,9399,GOVERNMENT SERVICES-NOT ELSEWHERE CLASSIFIED,FIRE
REDACTED,100,02/12/2015,ASDA SUPERSTORE,086SB054/3 Asda Food Vouchers,5411,"GROCERY STORES, SUPERMARKETS",CHILDREN & YOUNG PEOPLE
REDACTED,48.17,02/12/2015,RAILEASY WEB SITE,RTN Train tickets - Manningtree- Shrewsbury_XXXXX,4112,PASSENGER RAILWAYS,ENVIRONMENT & TRANSPORT
REDACTED,6.98,02/12/2015,123-REG.CO.UK,Domain Renewal - (2 yrs),4816,COMPUTER NETWORK/INFORMATION SERVICES,ENVIRONMENT & TRANSPORT
REDACTED,56,02/12/2015,GREATERANGLIA.CO.UK,XXXXXX Local Govt Finance Conf London,4112,PASSENGER RAILWAYS,RESOURCE MANAGEMENT
REDACTED,72,02/12/2015,JORDAN PUBLISHING,Consumer book for training purposes,5942,BOOK STORES,PUBLIC PROTECTION
REDACTED,18,02/12/2015,EA HAZARDOUS WASTE-DOM,HALESWORTH REG REF: OAB387,9399,GOVERNMENT SERVICES-NOT ELSEWHERE CLASSIFIED,FIRE
REDACTED,18,02/12/2015,EA HAZARDOUS WASTE-DOM,WATTISHAM REG REF: OIC275,9399,GOVERNMENT SERVICES-NOT ELSEWHERE CLASSIFIED,FIRE
REDACTED,18,02/12/2015,EA HAZARDOUS WASTE-DOM,MIDENHALL REG REF: OEU572,9399,GOVERNMENT SERVICES-NOT ELSEWHERE CLASSIFIED,FIRE
REDACTED,20.5,02/12/2015,SAINSBURYS 2163,Xmas items for centre.,5411,"GROCERY STORES, SUPERMARKETS",CHILDREN & YOUNG PEOPLE
REDACTED,18,02/12/2015,EA HAZARDOUS WASTE-DOM,BRANDON REG REF: OEU 568,9399,GOVERNMENT SERVICES-NOT ELSEWHERE CLASSIFIED,FIRE
REDACTED,18,02/12/2015,EA HAZARDOUS WASTE-DOM,IXWORTH REG REF: OEU564,9399,GOVERNMENT SERVICES-NOT ELSEWHERE CLASSIFIED,FIRE
REDACTED,18,02/12/2015,EA HAZARDOUS WASTE-DOM,STOWMARKET REG REF: OEU482,9399,GOVERNMENT SERVICES-NOT ELSEWHERE CLASSIFIED,FIRE
REDACTED,18,02/12/2015,EA HAZARDOUS WASTE-DOM,WRENTHAM REG REF: OAB238,9399,GOVERNMENT SERVICES-NOT ELSEWHERE CLASSIFIED,FIRE
REDACTED,18,02/12/2015,EA HAZARDOUS WASTE-DOM,BUNGAY REG REF: OAB500,9399,GOVERNMENT SERVICES-NOT ELSEWHERE CLASSIFIED,FIRE
REDACTED,18,02/12/2015,EA HAZARDOUS WASTE-DOM,ELMSWELL REG REF: OEU560,9399,GOVERNMENT SERVICES-NOT ELSEWHERE CLASSIFIED,FIRE
REDACTED,18,02/12/2015,EA HAZARDOUS WASTE-DOM,WICKHAMBROOK REG REF: OEU540,9399,GOVERNMENT SERVICES-NOT ELSEWHERE CLASSIFIED,FIRE
REDACTED,18,02/12/2015,EA HAZARDOUS WASTE-DOM,SUDBURY REG REF: OEU522,9399,GOVERNMENT SERVICES-NOT ELSEWHERE CLASSIFIED,FIRE
REDACTED,3.55,02/12/2015,EOE CO-OP,tea and coffee for meetings,5411,"GROCERY STORES, SUPERMARKETS",FIRE
REDACTED,35.55,02/12/2015,GREATERANGLIA.CO.UK,XXXXXX DCLG meeting London,4112,PASSENGER RAILWAYS,RESOURCE MANAGEMENT
REDACTED,50,02/12/2015,MID SUFFOLK DISTRICT C,LONG MELFORD REG REF,9399,GOVERNMENT SERVICES-NOT ELSEWHERE CLASSIFIED,FIRE
REDACTED,153.93,02/12/2015,ARGOS RETAIL GROUP,Furniture and Equipment grant - XXXXXX,5310,DISCOUNT STORES,ADULT & COMMUNITY SERVICES
REDACTED,14.85,02/12/2015,ASDA  STORES 4218,"Snack for Stay & Play, Just Toddling, Twins",5411,"GROCERY STORES, SUPERMARKETS",CHILDREN & YOUNG PEOPLE
REDACTED,25.28,02/12/2015,TESCO STORE 2166,Food for groups N-D2015 R3,5411,"GROCERY STORES, SUPERMARKETS",CHILDREN & YOUNG PEOPLE
REDACTED,-3,02/12/2015,WWW.NORFOLK.GOV.UK,Refund re Birth Certificate for XXXXX,9399,GOVERNMENT SERVICES-NOT ELSEWHERE CLASSIFIED,CHILDREN & YOUNG PEOPLE
REDACTED,15.41,02/12/2015,PREMIER INN 44531705,Split - (50%),3811,PREMIER INN,CHILDREN & YOUNG PEOPLE
REDACTED,15.42,02/12/2015,PREMIER INN 44531705,Split - (50%),3811,PREMIER INN,CHILDREN & YOUNG PEOPLE
REDACTED,-79,02/12/2015,CREDIT ADJUSTMENT,"Credit Amazon Prime subs, placed in dispute",,,CHILDREN & YOUNG PEOPLE
REDACTED,235.88,03/12/2015,SHERATON BIRMINGHAM,Hotel bill for XXXXX return to US,3503,SHERATON,CHILDREN & YOUNG PEOPLE
REDACTED,5.24,03/12/2015,PRET A MANGER,Dinner - Radioactive Waste Planning Group,5812,"EATING PLACES, RESTAURANTS",ENVIRONMENT & TRANSPORT
REDACTED,23.4,03/12/2015,GRO HM PASSPORT OFFICE,Urgent Birth certificate for XXXXX 086GS052/6,9399,GOVERNMENT SERVICES-NOT ELSEWHERE CLASSIFIED,CHILDREN & YOUNG PEOPLE
REDACTED,140,03/12/2015,HM COURTS & TRIBUN,Court costs for XXXXX,9399,GOVERNMENT SERVICES-NOT ELSEWHERE CLASSIFIED,CHILDREN & YOUNG PEOPLE
REDACTED,328.94,03/12/2015,ARGOS RETAIL GROUP,Sofabed for XXXXX,5310,DISCOUNT STORES,CHILDREN & YOUNG PEOPLE
REDACTED,129.15,03/12/2015,CURVE MOTION,Activity Group,7991,TOURIST ATTRACTIONS AND EXHIBITS,CHILDREN & YOUNG PEOPLE
REDACTED,26,03/12/2015,STATIONERY OFFICE BOOK,Public Notice Beccles relief road,5964,DIRECT MARKETING-CATALOG MERCHANTS,RESOURCE MANAGEMENT
REDACTED,8,03/12/2015,ASDA  STORES 4218,Books for Children's Centre Xmas party,5411,"GROCERY STORES, SUPERMARKETS",CHILDREN & YOUNG PEOPLE
REDACTED,135,03/12/2015,WWW.JUMPSTREET.CO.,Activity Group,7997,"CLUBS-CNTRY,MBRSHIP(ATHLET,REC,SPRTS,PRIVATE GOLF",CHILDREN & YOUNG PEOPLE
REDACTED,19,03/12/2015,WWW.NORFOLK.GOV.UK,charged twice in error. refund reqstd dec18 42593,9399,GOVERNMENT SERVICES-NOT ELSEWHERE CLASSIFIED,RESOURCE MANAGEMENT
REDACTED,20,03/12/2015,LONDON OVERGROUND,Oyster card top up,4112,PASSENGER RAILWAYS,ENVIRONMENT & TRANSPORT
REDACTED,11.6,03/12/2015,B & Q,Door hook Beccles,5211,"BUILDING MATERIALS, LUMBER STORES",FIRE
REDACTED,158.96,03/12/2015,ASDA HOME SHOPPING,Looked after children - Provisions,5411,"GROCERY STORES, SUPERMARKETS",CHILDREN & YOUNG PEOPLE
REDACTED,-2.58,03/12/2015,ASDA HOME SHOPPING,Looked after Children - Provisions,5411,"GROCERY STORES, SUPERMARKETS",CHILDREN & YOUNG PEOPLE
REDACTED,238,03/12/2015,PREMIER INN44531685,"Overnight Accommodation XXXXXX, XXXXX XXXXX",3811,PREMIER INN,RESOURCE MANAGEMENT
REDACTED,37,03/12/2015,PREMIER INN 44531705,Overnight Accom - XXXXX,3811,PREMIER INN,ENVIRONMENT & TRANSPORT
REDACTED,65.4,03/12/2015,EPSON UK B2C STORE,Projector bulb,5045,"COMPUTERS, COMPUTER PERIPHERAL EQUIPMENT, SOFTWARE",FIRE
REDACTED,14.13,04/12/2015,Amazon UK Marketplace,LOOKED AFTER CHILDREN Xmas present: XXXXX beanbag,5942,BOOK STORES,CHILDREN & YOUNG PEOPLE
REDACTED,17.5,04/12/2015,Amazon UK Marketplace,LOOKED AFTER CHILDREN Xmas present XXXXX beanbag,5942,BOOK STORES,CHILDREN & YOUNG PEOPLE
REDACTED,319.54,04/12/2015,Amazon web services,onesuffolk hosting,7399,BUSINESS SERVICES-NOT ELSEWHERE CLASSIFIED,RESOURCE MANAGEMENT
REDACTED,9.95,04/12/2015,ORIGINAL FACTORY S,Materials for Christmas themed sessions,5311,DEPARTMENT STORES,CHILDREN & YOUNG PEOPLE
REDACTED,10.9,04/12/2015,SAINSBURYS SACAT 0408,Coffee and Sugar for Supplies Auth XXXXX,5411,"GROCERY STORES, SUPERMARKETS",PUBLIC PROTECTION
REDACTED,7.55,04/12/2015,POUNDLAND 1456,Christmas materials for sessions,5310,DISCOUNT STORES,CHILDREN & YOUNG PEOPLE
REDACTED,8.2,04/12/2015,SL-NCP-ADAPTIS ECOM GA,Car parking for BIFA meeting London,7523,AUTOMOBILE PARKING LOTS AND GARAGES,PUBLIC PROTECTION
REDACTED,117,04/12/2015,LCN.COM LTD,F0616238/CR6127 - new domain names,7392,"CONSULTING, MANAGEMENT, AND PUBLIC RELATIONS SVCS",RESOURCE MANAGEMENT
REDACTED,15,04/12/2015,ASDA STORES 4481,Christmas materials for sessions,5411,"GROCERY STORES, SUPERMARKETS",CHILDREN & YOUNG PEOPLE
REDACTED,205.5,04/12/2015,WWW.VOUCHEREXPRESS.CO.,Furniture and Equipment Grant vouchers,5947,"GIFT, CARD, NOVELTY AND SOUVENIR SHOPS",ADULT & COMMUNITY SERVICES
REDACTED,9.91,07/12/2015,Amazon UK Marketplace,LOOKED AFTER CHILDREN Xmas present,5942,BOOK STORES,CHILDREN & YOUNG PEOPLE
REDACTED,20.83,07/12/2015,Amazon EU,LOOKED AFTER CHILDREN Xmas presents DVD,5969,DIRECT MARKETING-OTHER DIRECT MARKETERS/NOT ELSEW.,CHILDREN & YOUNG PEOPLE
REDACTED,10.18,07/12/2015,Amazon UK Marketplace,LOOKED AFTER CHILDREN Xmas present,5942,BOOK STORES,CHILDREN & YOUNG PEOPLE
REDACTED,3.21,07/12/2015,Amazon UK Marketplace,LOOKED AFTER CHILDREN Xmas party,5942,BOOK STORES,CHILDREN & YOUNG PEOPLE
REDACTED,2.63,07/12/2015,"Amazon Svcs Europe,SAR",LOOKED AFTER CHILDREN Xmas party,5942,BOOK STORES,CHILDREN & YOUNG PEOPLE
REDACTED,6.89,07/12/2015,Amazon UK Marketplace,LOOKED AFTER CHILDREN Xmas party,5942,BOOK STORES,CHILDREN & YOUNG PEOPLE
REDACTED,24.99,07/12/2015,Amazon UK Marketplace,LOOKED AFTER CHILDREN Xmas present docking St,5942,BOOK STORES,CHILDREN & YOUNG PEOPLE
REDACTED,20.84,07/12/2015,ALDI,Christmas decorations for Visitor Centre,5411,"GROCERY STORES, SUPERMARKETS",RESOURCE MANAGEMENT
REDACTED,45,07/12/2015,TESCO STORES-2169,Xmas Tree for Visitor Centre,5411,"GROCERY STORES, SUPERMARKETS",RESOURCE MANAGEMENT
REDACTED,34,07/12/2015,TESCO STORE 2166,Xmas decorations,5411,"GROCERY STORES, SUPERMARKETS",RESOURCE MANAGEMENT
REDACTED,4.25,07/12/2015,GREGGS S2067,Food for groups N-D2015 R4,5462,BAKERIES,CHILDREN & YOUNG PEOPLE
REDACTED,16.53,07/12/2015,LONDIS VILLAGE STORES,"Vols expenses, incl. Training day",5411,"GROCERY STORES, SUPERMARKETS",ENVIRONMENT & TRANSPORT
REDACTED,44.5,07/12/2015,PARENTPAY.COM,"LOOKED AFTER CHILDREN, XXXXX, XXXXX school dinner",8220,"COLLEGES, UNIV, PRO SCHOOLS, JUNIOR COLLEGES",CHILDREN & YOUNG PEOPLE
REDACTED,4.16,07/12/2015,Amazon UK Marketplace,LOOKED AFTER CHILDREN Xmas present,5942,BOOK STORES,CHILDREN & YOUNG PEOPLE
REDACTED,17.88,07/12/2015,Amazon UK Marketplace,LOOKED AFTER CHILDREN Xmas party,5942,BOOK STORES,CHILDREN & YOUNG PEOPLE
REDACTED,8.1,07/12/2015,Amazon UK Marketplace,LOOKED AFTER CHILDREN Xmas party,5942,BOOK STORES,CHILDREN & YOUNG PEOPLE
REDACTED,27.41,07/12/2015,Amazon UK Marketplace,LOOKED AFTER CHILDREN Xmas party,5942,BOOK STORES,CHILDREN & YOUNG PEOPLE
REDACTED,2.09,07/12/2015,Amazon UK Marketplace,LOOKED AFTER CHILDREN Xmas present,5942,BOOK STORES,CHILDREN & YOUNG PEOPLE
REDACTED,299.76,07/12/2015,LAKEN LODGING,"Accomm. to 12th Dec, XXXXX - 086LS087/1",7011,"LODGING-HOTELS,MOTELS,RESORTS-NOT CLASSIFIED",CHILDREN & YOUNG PEOPLE
REDACTED,10,07/12/2015,SAINSBURYS SACAT0411,Tealights for Lantern Walk event,5411,"GROCERY STORES, SUPERMARKETS",RESOURCE MANAGEMENT
REDACTED,145.5,07/12/2015,TVLICENSING.CO.UK,Looked After Children TV Licence XXXXX,7392,"CONSULTING, MANAGEMENT, AND PUBLIC RELATIONS SVCS",ADULT & COMMUNITY SERVICES
REDACTED,10.54,08/12/2015,Amazon UK Marketplace,LOOKED AFTER CHILDREN Activities,5942,BOOK STORES,CHILDREN & YOUNG PEOPLE
REDACTED,4.16,08/12/2015,Amazon EU,LOOKED AFTER CHILDREN Xmas party,5969,DIRECT MARKETING-OTHER DIRECT MARKETERS/NOT ELSEW.,CHILDREN & YOUNG PEOPLE
REDACTED,28.71,08/12/2015,WAITROSE 140,food and drink for centre,5411,"GROCERY STORES, SUPERMARKETS",CHILDREN & YOUNG PEOPLE
REDACTED,42.9,08/12/2015,GREATERANGLIA.CO.UK,XXXXX SCTCLG liaison pension mtg,4112,PASSENGER RAILWAYS,RESOURCE MANAGEMENT
REDACTED,6.94,08/12/2015,POUNDSTRETCHER 538,Materials for Christmas craft sessions,5714,"DRAPERY, UPOLSTERY, AND WINDOW COVERINGS STORES",CHILDREN & YOUNG PEOPLE
REDACTED,21.55,08/12/2015,WILKO RETAIL LIMIT,Materials for Christmas craft activities,5722,HOUSEHOLD APPLIANCE STORES,CHILDREN & YOUNG PEOPLE
REDACTED,299.25,08/12/2015,GREEN-TECH LTD,175xTubex Std &Tree Shelter_XXXXX,7399,BUSINESS SERVICES-NOT ELSEWHERE CLASSIFIED,ENVIRONMENT & TRANSPORT
REDACTED,137.5,08/12/2015,DIVELINE LIMITED,22 litre Drybags for stock (to be issued to XXXXX),5941,SPORTING GOODS STORES,PUBLIC PROTECTION
REDACTED,15.96,08/12/2015,Amazon UK Marketplace,2nd order of phone cases vat no. 176524980,5942,BOOK STORES,CHILDREN & YOUNG PEOPLE
REDACTED,7.07,08/12/2015,STAPLES UK,Wall Planner for Supplies,5943,"OFFICE, SCHOOL SUPPLY, AND STATIONERY STORES",PUBLIC PROTECTION
REDACTED,106.75,08/12/2015,JNE SECURITY LTD,"35,mini personal alarms Stow HV team",7311,ADVERTISING SERVICES,CHILDREN & YOUNG PEOPLE
REDACTED,38.4,08/12/2015,WWW.COES.CO.UK,Looked After Children School Jumpers for XXXXX,5691,MEN'S AND WOMEN'S CLOTHING STORES,ADULT & COMMUNITY SERVICES
REDACTED,26.78,08/12/2015,DANIELS SILVERMAN,Fuel Costs for XXXXX - fuel card out of date,7299,OTHER SERVICES (NOT ELSEWHERE CLASSIFIED),CHILDREN & YOUNG PEOPLE
REDACTED,40.96,08/12/2015,ASDA HOME SHOPPING,Food and drink for groups,5411,"GROCERY STORES, SUPERMARKETS",CHILDREN & YOUNG PEOPLE
REDACTED,37.92,08/12/2015,ASDA HOME SHOPPING,Food for groups N-D2015 R5,5411,"GROCERY STORES, SUPERMARKETS",CHILDREN & YOUNG PEOPLE
REDACTED,-9.49,08/12/2015,ASDA HOME SHOPPING,"Food and drink for groups, refund",5411,"GROCERY STORES, SUPERMARKETS",CHILDREN & YOUNG PEOPLE
REDACTED,-0.5,08/12/2015,ASDA HOME SHOPPING,Food for groups N-D2015 R5 (Refund),5411,"GROCERY STORES, SUPERMARKETS",CHILDREN & YOUNG PEOPLE
REDACTED,28.83,08/12/2015,LAKELAND LIMITED,Christmas Decorations for Visitor Centre,5399,MISCELLANEOUS GENERAL MERCHANDISE,RESOURCE MANAGEMENT
REDACTED,24.99,09/12/2015,Amazon EU,LOOKED AFTER CHILDREN Xmas present,5969,DIRECT MARKETING-OTHER DIRECT MARKETERS/NOT ELSEW.,CHILDREN & YOUNG PEOPLE
REDACTED,14.99,09/12/2015,Amazon EU,LOOKED AFTER CHILDREN Activities,5969,DIRECT MARKETING-OTHER DIRECT MARKETERS/NOT ELSEW.,CHILDREN & YOUNG PEOPLE
REDACTED,12.98,09/12/2015,Amazon UK Marketplace,LOOKED AFTER CHILDREN Xmas present,5942,BOOK STORES,CHILDREN & YOUNG PEOPLE
REDACTED,24.33,09/12/2015,Amazon UK Marketplace,LOOKED AFTER CHILDREN Activities,5942,BOOK STORES,CHILDREN & YOUNG PEOPLE
REDACTED,20.79,09/12/2015,Amazon UK Marketplace,LOOKED AFTER CHILDREN Xmas present,5942,BOOK STORES,CHILDREN & YOUNG PEOPLE
REDACTED,15.98,09/12/2015,Amazon UK Marketplace,LOOKED AFTER CHILDREN Clothes,5942,BOOK STORES,CHILDREN & YOUNG PEOPLE
REDACTED,22,09/12/2015,SPORTSDIRECT.COM,LOOKED AFTER CHILDREN clothes,5941,SPORTING GOODS STORES,CHILDREN & YOUNG PEOPLE
REDACTED,100,09/12/2015,ASDA SUPERSTORE,086SB054/4 Asda Food Vouchers,5411,"GROCERY STORES, SUPERMARKETS",CHILDREN & YOUNG PEOPLE
REDACTED,74.1,09/12/2015,TURNERS(IPSWICH),REPLACE WHEEL ARCH GUARD EJ64 UWU,7538,AUTOMOTIVE SERVICE SHOPS,FIRE
REDACTED,109.08,09/12/2015,TRAVELODGE WEBSITE,Hotel - Faculty of Public Health Conference,3615,TRAVELODGE,PUBLIC HEALTH
REDACTED,7.71,09/12/2015,Amazon UK Marketplace,2nd order of phone cases,5942,BOOK STORES,CHILDREN & YOUNG PEOPLE
REDACTED,9.7,09/12/2015,M&S SIMPLY FOOD - SSP,Lunch - meeting with NIA in London,5499,"MISC FOOD STORE-CONVENIENCE,MRKT,SPLTY,VENDNG MACS",ENVIRONMENT & TRANSPORT
REDACTED,9.16,09/12/2015,Amazon UK Marketplace,LOOKED AFTER CHILDREN Xmas present,5942,BOOK STORES,CHILDREN & YOUNG PEOPLE
REDACTED,7.97,09/12/2015,Amazon UK Marketplace,LOOKED AFTER CHILDREN Xmas present,5942,BOOK STORES,CHILDREN & YOUNG PEOPLE
REDACTED,-38.4,09/12/2015,WWW.COES.CO.UK,Looked After Children School Jumpers for XXXXX Refund,5691,MEN'S AND WOMEN'S CLOTHING STORES,ADULT & COMMUNITY SERVICES
REDACTED,9.9,09/12/2015,"Amazon Svcs Europe,SAR",LOOKED AFTER CHILDREN Xmas present,5942,BOOK STORES,CHILDREN & YOUNG PEOPLE
REDACTED,58.95,09/12/2015,Kitbag Ltd,LOOKED AFTER CHILD Xmas present,5655,"SPORTS APPAREL, RIDING APPAREL STORES",CHILDREN & YOUNG PEOPLE
REDACTED,-8.89,10/12/2015,FASTER PAYMENT RECEIVED- THANK YOU,Error correction (transaction 23/11/2015),,,ENVIRONMENT & TRANSPORT
REDACTED,11.87,10/12/2015,Amazon UK Marketplace,LOOKED AFTER CHILDREN Slippers,5942,BOOK STORES,CHILDREN & YOUNG PEOPLE
REDACTED,15.49,10/12/2015,Amazon UK Marketplace,LOOKED AFTER CHILDREN Clothes,5942,BOOK STORES,CHILDREN & YOUNG PEOPLE
REDACTED,32.4,10/12/2015,POST OFFICE COUNTER,postage stamps,9402,POSTAL SERVICES-GOVERNMENT ONLY,CHILDREN & YOUNG PEOPLE
REDACTED,20.25,10/12/2015,GLIFFY,Digital transformation subscription,5734,COMPUTER SOFTWARE STORES,RESOURCE MANAGEMENT
REDACTED,109.57,10/12/2015,WILLOW TREE,Food and Drinks for Protection and Housing,5812,"EATING PLACES, RESTAURANTS",FIRE
REDACTED,93.52,10/12/2015,EDMUNDSON ELECTRICAL,unistrut and handheld lights for projectors,5065,ELECTRICAL PARTS AND EQUIPMENT,FIRE
REDACTED,8.27,10/12/2015,DENMANS ELECTRICAL IPS,conduit etc for projector at Wrentham,5065,ELECTRICAL PARTS AND EQUIPMENT,FIRE
REDACTED,5,10/12/2015,PRET A MANGER,Lunch - NIA meeting in London,5812,"EATING PLACES, RESTAURANTS",ENVIRONMENT & TRANSPORT
REDACTED,12.76,10/12/2015,TESCO STORE 2166,food and drink for centre,5411,"GROCERY STORES, SUPERMARKETS",CHILDREN & YOUNG PEOPLE
REDACTED,28.95,10/12/2015,Amazon EU,Wheelie Bag for XXXXX,5969,DIRECT MARKETING-OTHER DIRECT MARKETERS/NOT ELSEW.,CHILDREN & YOUNG PEOPLE
REDACTED,8.2,10/12/2015,SL-NCP-ADAPTIS ECOM GA,Parking for meeting Brussels,7523,AUTOMOBILE PARKING LOTS AND GARAGES,PUBLIC PROTECTION
REDACTED,379.99,10/12/2015,ARGOS RETAIL GROUP,Suspected Fraud,5310,DISCOUNT STORES,ENVIRONMENT & TRANSPORT
REDACTED,141.02,10/12/2015,ASDA HOME SHOPPING,Looked after children - Provisions,5411,"GROCERY STORES, SUPERMARKETS",CHILDREN & YOUNG PEOPLE
REDACTED,0.32,10/12/2015,WILLOW TREE,Test for PIN,5812,"EATING PLACES, RESTAURANTS",FIRE
REDACTED,-0.89,10/12/2015,ASDA HOME SHOPPING,Looked after Children - Provisions,5411,"GROCERY STORES, SUPERMARKETS",CHILDREN & YOUNG PEOPLE
REDACTED,-5.26,10/12/2015,ASDA HOME SHOPPING,Looked after Children - Provisions,5411,"GROCERY STORES, SUPERMARKETS",CHILDREN & YOUNG PEOPLE
REDACTED,11.21,10/12/2015,LAS IGUANAS - STRATFOR,Dinner - meeting with NIA in London,5812,"EATING PLACES, RESTAURANTS",ENVIRONMENT & TRANSPORT
REDACTED,7.99,10/12/2015,SHOEZONE.NET,LOOKED AFTER CHILDREN Slippers-unavailable-refund,5661,SHOE STORES,CHILDREN & YOUNG PEOPLE
REDACTED,33.52,10/12/2015,BALSAMIQ,Digital content team subscription,5734,COMPUTER SOFTWARE STORES,RESOURCE MANAGEMENT
REDACTED,13.99,11/12/2015,Amazon UK Marketplace,LOOKED AFTER CHILDREN Slippers,5942,BOOK STORES,CHILDREN & YOUNG PEOPLE
REDACTED,31.65,11/12/2015,GREATERANGLIA.CO.UK,XXXXX XXXXX XXXXX meeting,4112,PASSENGER RAILWAYS,RESOURCE MANAGEMENT
REDACTED,93.6,11/12/2015,GRO HM PASSPORT OFFICE,Passports for LAC415 & LAC416,9399,GOVERNMENT SERVICES-NOT ELSEWHERE CLASSIFIED,CHILDREN & YOUNG PEOPLE
REDACTED,287.95,11/12/2015,GREATERANGLIA.CO.UK,XXXXX XXXXX XXXXX Rail Travel SCT,4112,PASSENGER RAILWAYS,RESOURCE MANAGEMENT
REDACTED,39.84,11/12/2015,ASDA HOME SHOPPING,B2M Food Order for 09/12/15,5411,"GROCERY STORES, SUPERMARKETS",CHILDREN & YOUNG PEOPLE
REDACTED,3.17,11/12/2015,ALIBRIS FORWATERSTONES,Memorandum of Good Practice for MASH,5969,DIRECT MARKETING-OTHER DIRECT MARKETERS/NOT ELSEW.,CHILDREN & YOUNG PEOPLE
REDACTED,8.75,14/12/2015,TESCO STORES 5123,LOOKED AFTER CHILDREN teachers presents,5411,"GROCERY STORES, SUPERMARKETS",CHILDREN & YOUNG PEOPLE
REDACTED,5.81,14/12/2015,LAKELAND,Chalk pens for tearoom,5399,MISCELLANEOUS GENERAL MERCHANDISE,RESOURCE MANAGEMENT
REDACTED,0.02,14/12/2015,SHERATON BIRMINGHAM,Additional charge- XXXXX hotel stay to return home,3503,SHERATON,CHILDREN & YOUNG PEOPLE
REDACTED,17.53,14/12/2015,TESCO STORES 4483,Materials for satadads session on 12th December 15,5411,"GROCERY STORES, SUPERMARKETS",CHILDREN & YOUNG PEOPLE
REDACTED,60.69,14/12/2015,Amazon UK Marketplace,New printer,5942,BOOK STORES,ENVIRONMENT & TRANSPORT
REDACTED,103.93,14/12/2015,ARGOS RETAIL GROUP,Two Body Composition Monitors for XXXXX.,5310,DISCOUNT STORES,ADULT & COMMUNITY SERVICES
REDACTED,298.18,14/12/2015,LAKEN LODGING,Accommodation to 19th Dec @ LL 086LS087/2,7011,"LODGING-HOTELS,MOTELS,RESORTS-NOT CLASSIFIED",CHILDREN & YOUNG PEOPLE
REDACTED,66,14/12/2015,GREATERANGLIA.CO.UK,XXXXX London Pensions Meetings,4112,PASSENGER RAILWAYS,RESOURCE MANAGEMENT
REDACTED,3.75,14/12/2015,B & Q,pipe lagging for aldeburgh,5211,"BUILDING MATERIALS, LUMBER STORES",FIRE
REDACTED,202.5,14/12/2015,MSFT  <E01001LS90>,Microsoft Licence,4816,COMPUTER NETWORK/INFORMATION SERVICES,RESOURCE MANAGEMENT
REDACTED,-7.99,14/12/2015,SHOEZONE.NET,LOOKED AFTER CHILDREN slippers - refund,5661,SHOE STORES,CHILDREN & YOUNG PEOPLE
REDACTED,63.99,14/12/2015,PREMIER INN44015865,Hotel booking for XXXXX,3811,PREMIER INN,CHILDREN & YOUNG PEOPLE
REDACTED,24.99,15/12/2015,Amazon UK Marketplace,Looked After Child - Xmas Present XXXXX,5942,BOOK STORES,ADULT & COMMUNITY SERVICES
REDACTED,243.14,15/12/2015,HOME BARGAINS,Childrens xmas presents for party,5251,HARDWARE STORES,CHILDREN & YOUNG PEOPLE
REDACTED,3.58,15/12/2015,FASTHOSTS INTERNET,Invest in Suffolk website,4816,COMPUTER NETWORK/INFORMATION SERVICES,ENVIRONMENT & TRANSPORT
REDACTED,26,15/12/2015,TESCO DIRECT,Looked After Children - Xmas present for XXXXX,5999,MISCELLANEOUS AND SPECIALTY RETAIL STORES,ADULT & COMMUNITY SERVICES
REDACTED,86,15/12/2015,BYTEMARK HOSTING,Cyp hosting,5734,COMPUTER SOFTWARE STORES,RESOURCE MANAGEMENT
REDACTED,14.5,16/12/2015,Amazon UK Marketplace,Stationery items - desk calendars,5942,BOOK STORES,RESOURCE MANAGEMENT
REDACTED,88.69,16/12/2015,W J GREEN LTD,Chainsaw bar and chain and spares,5251,HARDWARE STORES,ENVIRONMENT & TRANSPORT
REDACTED,4.99,16/12/2015,Amazon EU,Stationery,5969,DIRECT MARKETING-OTHER DIRECT MARKETERS/NOT ELSEW.,RESOURCE MANAGEMENT
REDACTED,38.04,16/12/2015,PAYPAL  ROXY EBAY,The Systems Thinking Playbook Book & DVD,5311,DEPARTMENT STORES,RESOURCE MANAGEMENT
REDACTED,58.6,16/12/2015,JECKELLS & SON LTD,waterproof maps for the flood boats,4468,"MARINAS, MARINE SERVICE/SUPPLIES",FIRE
REDACTED,13.29,16/12/2015,TOOLSTATION LTD,GAS CARTRIDGE & A23 BATTERIES FOR TESTER,5251,HARDWARE STORES,FIRE
REDACTED,119,16/12/2015,CHANNEL COMMERCIALS PL,NO BANKSMAN STICKERS FOR H&S,5511,"AUTO & TRUCK DLRS-SALES,SVC, REPRS,PRTS, & LEASING",FIRE
REDACTED,44.66,16/12/2015,ASDA  STORES 4218,Snack - Christmas sessions,5411,"GROCERY STORES, SUPERMARKETS",CHILDREN & YOUNG PEOPLE
REDACTED,5.1,16/12/2015,SL-NCP-ADAPTIS ECOM GA,parking at train station,7523,AUTOMOBILE PARKING LOTS AND GARAGES,PUBLIC PROTECTION
REDACTED,148.31,16/12/2015,ASDA HOME SHOPPING,Looked after children - Provisions,5411,"GROCERY STORES, SUPERMARKETS",CHILDREN & YOUNG PEOPLE
REDACTED,-20,16/12/2015,OYSTER RENEW WEB,Refund of charge to XXXXX Oystercard,4112,PASSENGER RAILWAYS,ENVIRONMENT & TRANSPORT
REDACTED,-4.63,16/12/2015,ASDA HOME SHOPPING,Looked after children - Provisions,5411,"GROCERY STORES, SUPERMARKETS",CHILDREN & YOUNG PEOPLE
REDACTED,-9.25,16/12/2015,GRO HM PASSPORT OFFICE,XXXXX Birth cert refund 086CR040/12,9399,GOVERNMENT SERVICES-NOT ELSEWHERE CLASSIFIED,CHILDREN & YOUNG PEOPLE
REDACTED,37.5,17/12/2015,BELL HOTEL,Hotel for Healthy Food Award trainer,5813,"BAR,LOUNGE,DISCO,NIGHTCLUB,TAVERN-ALCOHOLIC DRINKS",PUBLIC HEALTH
REDACTED,22.42,17/12/2015,TESCO STORES 5909,B2M Treats for Christmas Order Dec 15,5411,"GROCERY STORES, SUPERMARKETS",CHILDREN & YOUNG PEOPLE
REDACTED,7.39,17/12/2015,WAITROSE 636,Dinner - LLW meeting in Manchester,5411,"GROCERY STORES, SUPERMARKETS",ENVIRONMENT & TRANSPORT
REDACTED,7.02,17/12/2015,QD STORES LTD,Equipment for B2M use December 2015,5310,DISCOUNT STORES,CHILDREN & YOUNG PEOPLE
REDACTED,90,17/12/2015,J D SPORTS,B2M Gift Card Order for final meeting,5941,SPORTING GOODS STORES,CHILDREN & YOUNG PEOPLE
REDACTED,25.93,17/12/2015,STAPLES UK,MECHANICS WORK DIARIES,5943,"OFFICE, SCHOOL SUPPLY, AND STATIONERY STORES",FIRE
REDACTED,63.55,17/12/2015,APPMAKR-MOBILEAPPS,L and D App Makr,7372,"COMP PROGRAMING,DATA PRCSNG,INTGRTD SYS DSGN SRVS",RESOURCE MANAGEMENT
REDACTED,5.1,17/12/2015,SL-NCP-ADAPTIS ECOM GA,parking at station for meeting in London,7523,AUTOMOBILE PARKING LOTS AND GARAGES,PUBLIC PROTECTION
REDACTED,222,18/12/2015,ACM-LIFE CDS MOTO,Archant,2741,MISCELLANEOUS PUBLISHING AND PRINTING,RESOURCE MANAGEMENT
REDACTED,2.94,18/12/2015,POST OFFICE COUNTER,Postage of returns to suppliers,9402,POSTAL SERVICES-GOVERNMENT ONLY,PUBLIC PROTECTION
REDACTED,3.31,18/12/2015,B & Q,Pull sticker for 03 door,5211,"BUILDING MATERIALS, LUMBER STORES",FIRE
REDACTED,9.25,18/12/2015,GRO HM PASSPORT OFFICE,Re-order birth certificate for XXXXX  086CR040/12,9399,GOVERNMENT SERVICES-NOT ELSEWHERE CLASSIFIED,CHILDREN & YOUNG PEOPLE
REDACTED,35,18/12/2015,WWW.JA.NET,F0620503 - SSL Certificate for anycommsplus,8699,"ORGANIZATIONS, MEMBERSHIP-NOT ELSEWHERE CLASSIFIED",RESOURCE MANAGEMENT
REDACTED,200,18/12/2015,TESCO STORE 2166,Charity funding food/clothing for needy family,5411,"GROCERY STORES, SUPERMARKETS",CHILDREN & YOUNG PEOPLE
REDACTED,31,18/12/2015,W & M SMITH,BANQUETING ROLL FOR XMAS PARTY,5947,"GIFT, CARD, NOVELTY AND SOUVENIR SHOPS",CHILDREN & YOUNG PEOPLE
REDACTED,168.97,18/12/2015,BOOKERECOMM,Looked after children - Provisions,5811,CATERERS,CHILDREN & YOUNG PEOPLE
REDACTED,49.99,18/12/2015,ASDA HOME SHOPPING,B2M Food Order for 14/12/15,5411,"GROCERY STORES, SUPERMARKETS",CHILDREN & YOUNG PEOPLE
REDACTED,-8.95,18/12/2015,ARGOS DIRECT,Delivery charge refund for XXXXX grant for XXXXX.,5310,DISCOUNT STORES,ADULT & COMMUNITY SERVICES
REDACTED,-1.28,18/12/2015,ASDA HOME SHOPPING,B2M Food Order for 14/12/15,5411,"GROCERY STORES, SUPERMARKETS",CHILDREN & YOUNG PEOPLE
REDACTED,7.5,21/12/2015,Amazon UK Marketplace,4xUSB Hub Splitter Units for Panel Members' Tablet,5942,BOOK STORES,CHILDREN & YOUNG PEOPLE
REDACTED,4.74,21/12/2015,TWITTER ADVERTISING,Fostering Twitter Advertising,7311,ADVERTISING SERVICES,CHILDREN & YOUNG PEOPLE
REDACTED,200.84,21/12/2015,WWW.JESSOPS.COM,Replacement Fire Investigation Camera,5946,CAMERA AND PHOTOGRAPHIC SUPPLY STORES,FIRE
REDACTED,18.5,21/12/2015,GRO HM PASSPORT OFFICE,birth/marriage certifcates XXXXX,9399,GOVERNMENT SERVICES-NOT ELSEWHERE CLASSIFIED,CHILDREN & YOUNG PEOPLE
REDACTED,215.83,21/12/2015,TURNER MOTOR GROUP,SERVICE FDS CAR EJ64 UWP,7538,AUTOMOTIVE SERVICE SHOPS,FIRE
REDACTED,303.76,21/12/2015,LAKEN LODGING,Accommodation @ XXXXX - 086LS087/3,7011,"LODGING-HOTELS,MOTELS,RESORTS-NOT CLASSIFIED",CHILDREN & YOUNG PEOPLE
REDACTED,13.87,21/12/2015,PAYPAL  MEETOMATICL,online meeting tool subscription,7311,ADVERTISING SERVICES,PUBLIC PROTECTION
REDACTED,207.94,21/12/2015,ARGOS RETAIL GROUP,Furniture and equipment grant - XXXXX,5310,DISCOUNT STORES,ADULT & COMMUNITY SERVICES
REDACTED,160,21/12/2015,MILLPOND,XXXXX sleep workshop training for staff,8999,PROFESSIONAL SERVICES-NOT ELSEWHERE CLASSIFIED,CHILDREN & YOUNG PEOPLE
REDACTED,3.31,21/12/2015,B&Q,DOOR SIGN FOR PRINCES STREET,5211,"BUILDING MATERIALS, LUMBER STORES",FIRE
REDACTED,38.41,21/12/2015,ASDA HOME SHOPPING,Food for groups D-J2016 R1,5411,"GROCERY STORES, SUPERMARKETS",CHILDREN & YOUNG PEOPLE
REDACTED,266.69,21/12/2015,ARGOS RETAIL GROUP,Furniture and equipment grant - XXXXX.,5310,DISCOUNT STORES,ADULT & COMMUNITY SERVICES
REDACTED,-1.68,21/12/2015,Amazon UK Marketplace,Refund of Postage,5999,MISCELLANEOUS AND SPECIALTY RETAIL STORES,PUBLIC PROTECTION
REDACTED,0.4,21/12/2015,ASDA HOME SHOPPING,Food for groups D-J2016 R1,5411,"GROCERY STORES, SUPERMARKETS",CHILDREN & YOUNG PEOPLE
REDACTED,28.51,21/12/2015,TYPEKITBYADOBE,annual typekit subscription,7299,OTHER SERVICES (NOT ELSEWHERE CLASSIFIED),RESOURCE MANAGEMENT
REDACTED,18.5,21/12/2015,MSFT  <E03001MMXN>,Subscription for Intune Licenses,4816,COMPUTER NETWORK/INFORMATION SERVICES,RESOURCE MANAGEMENT
REDACTED,-8.95,21/12/2015,ARGOS DIRECT,Refunded delivery charge as goodwill gesture.,5310,DISCOUNT STORES,CHILDREN & YOUNG PEOPLE
REDACTED,89.88,22/12/2015,EASILY LTD,domain names reg,7392,"CONSULTING, MANAGEMENT, AND PUBLIC RELATIONS SVCS",RESOURCE MANAGEMENT
REDACTED,387.17,22/12/2015,PAYPAL  PROJECTBOTT,XXXXX - Software for BI Project,7372,"COMP PROGRAMING,DATA PRCSNG,INTGRTD SYS DSGN SRVS",RESOURCE MANAGEMENT
REDACTED,43.85,22/12/2015,IVY HOUSE COUNTRY HOTE,team training event,7011,"LODGING-HOTELS,MOTELS,RESORTS-NOT CLASSIFIED",FIRE
REDACTED,16.67,22/12/2015,B & Q,side cutters,5211,"BUILDING MATERIALS, LUMBER STORES",FIRE
REDACTED,13.91,22/12/2015,B&Q,Hardboard and materials for legal notices,5211,"BUILDING MATERIALS, LUMBER STORES",PUBLIC PROTECTION
REDACTED,230,22/12/2015,WWW.FIRSTFENCE.NET,scrap car fencing for Bury,5211,"BUILDING MATERIALS, LUMBER STORES",FIRE
REDACTED,529.1,22/12/2015,ARGOS RETAIL GROUP,Furniture and equipment grant - XXXXX.,5310,DISCOUNT STORES,ADULT & COMMUNITY SERVICES
REDACTED,100,22/12/2015,ASDA SUPERSTORE,086SB054/5 Food Vouchers,5411,"GROCERY STORES, SUPERMARKETS",CHILDREN & YOUNG PEOPLE
REDACTED,33.49,22/12/2015,TESCO STORES 4483,Food and drink for regional FI meeting,5411,"GROCERY STORES, SUPERMARKETS",FIRE
REDACTED,-21,22/12/2015,Amazon UK Marketplace,Looked After Children Refund for MP3 player,5999,MISCELLANEOUS AND SPECIALTY RETAIL STORES,ADULT & COMMUNITY SERVICES
REDACTED,72,23/12/2015,LCN.COM LTD,F0621690 - various Domain names (WR6466),7392,"CONSULTING, MANAGEMENT, AND PUBLIC RELATIONS SVCS",RESOURCE MANAGEMENT
REDACTED,20,23/12/2015,LCN.COM LTD,"F0619661 Domain name, suffolkcarshare.com",7392,"CONSULTING, MANAGEMENT, AND PUBLIC RELATIONS SVCS",RESOURCE MANAGEMENT
REDACTED,105,23/12/2015,WWW.JA.NET,F0620431 - SSL Certificates,8699,"ORGANIZATIONS, MEMBERSHIP-NOT ELSEWHERE CLASSIFIED",RESOURCE MANAGEMENT
REDACTED,18.97,23/12/2015,Amazon EU,Publication for foster carer XXXXXX,5969,DIRECT MARKETING-OTHER DIRECT MARKETERS/NOT ELSEW.,CHILDREN & YOUNG PEOPLE
REDACTED,37,23/12/2015,DSA THEORY TEST,Theory test booked by XXXXX,9399,GOVERNMENT SERVICES-NOT ELSEWHERE CLASSIFIED,FIRE
REDACTED,167.98,23/12/2015,WWW.PCWB.COM,Stand alone printer for covert PC funded by EETSA,5734,COMPUTER SOFTWARE STORES,PUBLIC PROTECTION
REDACTED,98.69,23/12/2015,ST EDMUNDSBURY COU,Planning Application re Moreton Hall,9399,GOVERNMENT SERVICES-NOT ELSEWHERE CLASSIFIED,ENVIRONMENT & TRANSPORT
REDACTED,200,23/12/2015,WHSMITH.CO.UK,WHSmith vouchers,5965,DIRECT MARKETING-COMBINATION CATALOG/RETAIL MERCH.,CHILDREN & YOUNG PEOPLE
REDACTED,37,23/12/2015,DSA THEORY TEST,Theory test booked by XXXXX,9399,GOVERNMENT SERVICES-NOT ELSEWHERE CLASSIFIED,FIRE
REDACTED,9.25,23/12/2015,GRO HM PASSPORT OFFICE,passport for XXXXX,9399,GOVERNMENT SERVICES-NOT ELSEWHERE CLASSIFIED,CHILDREN & YOUNG PEOPLE
REDACTED,145.5,23/12/2015,TVLICENSING.CO.UK,TV- License for Ferngate Building,7392,"CONSULTING, MANAGEMENT, AND PUBLIC RELATIONS SVCS",CHILDREN & YOUNG PEOPLE
REDACTED,41.66,24/12/2015,CURRYS,Kitchen Equipment - Toaster,5732,ELECTRONIC SALES,RESOURCE MANAGEMENT
REDACTED,52.79,24/12/2015,WAITROSE 658,Kitchen Equipment - scales/saucepan/frying pan,5411,"GROCERY STORES, SUPERMARKETS",RESOURCE MANAGEMENT
REDACTED,37,24/12/2015,DSA THEORY TEST,Theory test booked by XXXXX,9399,GOVERNMENT SERVICES-NOT ELSEWHERE CLASSIFIED,FIRE
REDACTED,3.49,24/12/2015,ARGOS RETAIL GROUP,Clock for team,5310,DISCOUNT STORES,CHILDREN & YOUNG PEOPLE
REDACTED,160,24/12/2015,MILLPOND,XXXXX sleep workshop training for staff,8999,PROFESSIONAL SERVICES-NOT ELSEWHERE CLASSIFIED,CHILDREN & YOUNG PEOPLE
REDACTED,50.35,24/12/2015,B & Q,shelving for Eye watchroom,5211,"BUILDING MATERIALS, LUMBER STORES",FIRE
REDACTED,102.57,24/12/2015,IPSWICH PLASTICS LTD,WORKTOP FOR EYE WATCHROOM,5231,"GLASS, PAINT, WALLPAPER STORES",FIRE
REDACTED,-26.4,24/12/2015,EAFSUPPLYCHAIN LTD,Refund of laptop battery,5045,"COMPUTERS, COMPUTER PERIPHERAL EQUIPMENT, SOFTWARE",FIRE
REDACTED,15.29,24/12/2015,RYANAIR22 22400000ALLQMM,Suffolk Youth Orchestra Site Inspection XXXXX,3246,RYANAIR,CHILDREN & YOUNG PEOPLE
REDACTED,30.58,24/12/2015,RYANAIR22 22400000LKB54P,Suffolk Youth Orchestra Site Inspection XXXXX,3246,RYANAIR,CHILDREN & YOUNG PEOPLE
REDACTED,4.06,24/12/2015,MSFT  <E08001PEMG>,Sub Multi-Factor Authentication Pay as you Go,4816,COMPUTER NETWORK/INFORMATION SERVICES,RESOURCE MANAGEMENT
REDACTED,14.44,28/12/2015,WWW ESPARES CO UK,LOOKED AFTER CHILDREN Hoover replacement part,5065,ELECTRICAL PARTS AND EQUIPMENT,CHILDREN & YOUNG PEOPLE
REDACTED,41.5,28/12/2015,WWW.COES.CO.UK,Looked After Children School jumpers for XXXXX,5691,MEN'S AND WOMEN'S CLOTHING STORES,ADULT & COMMUNITY SERVICES
REDACTED,83,28/12/2015,PREMIER INN44025590,Emergency Accommodation for XXXXX,3811,PREMIER INN,CHILDREN & YOUNG PEOPLE
REDACTED,105,28/12/2015,WWW.JA.NET,F0620431 SSL Certificates,8699,"ORGANIZATIONS, MEMBERSHIP-NOT ELSEWHERE CLASSIFIED",RESOURCE MANAGEMENT
REDACTED,2,28/12/2015,STATIONERY OFFICE BOOK,London gazette paper copy,5964,DIRECT MARKETING-CATALOG MERCHANTS,RESOURCE MANAGEMENT
REDACTED,20,28/12/2015,STATIONERY OFFICE BOOK,London gazette advert,5964,DIRECT MARKETING-CATALOG MERCHANTS,RESOURCE MANAGEMENT
REDACTED,303.85,28/12/2015,LAKEN LODGING,Accommodation @ XXXXX 086LS087/4,7011,"LODGING-HOTELS,MOTELS,RESORTS-NOT CLASSIFIED",CHILDREN & YOUNG PEOPLE
REDACTED,136.5,28/12/2015,VUE NCS CITB HS&E TEST,H&S Environment Test for Operatives,8299,SCHOOLS & EDUCATIONAL SVC-NOT ELSEWHERE CLASSIFIED,ENVIRONMENT & TRANSPORT
REDACTED,4.98,29/12/2015,TWITTER ADVERTISING,Fostering Twitter Advertising,7311,ADVERTISING SERVICES,CHILDREN & YOUNG PEOPLE
REDACTED,1.79,29/12/2015,FASTHOSTS INTERNET,Invest in Suffolk website,4816,COMPUTER NETWORK/INFORMATION SERVICES,ENVIRONMENT & TRANSPORT
REDACTED,280,30/12/2015,DELL PRODUCT,Stand alone pc tower for covert use EETSA funded,7372,"COMP PROGRAMING,DATA PRCSNG,INTGRTD SYS DSGN SRVS",PUBLIC PROTECTION
REDACTED,41.67,30/12/2015,QD MARKET TOWNS,LOOKED AFTER CHILDREN Storage for bedrooms,5310,DISCOUNT STORES,CHILDREN & YOUNG PEOPLE
REDACTED,44.95,31/12/2015,STAPLES UK,storage boxes for Xmas decorations,5943,"OFFICE, SCHOOL SUPPLY, AND STATIONERY STORES",RESOURCE MANAGEMENT
REDACTED,229.46,31/12/2015,THREADNEEDLE COMPANY L,uniforms for family in need 086JA013/1,5691,MEN'S AND WOMEN'S CLOTHING STORES,CHILDREN & YOUNG PEOPLE
